Body Name,Vendor Number,Vendor Name,Cost Centre,Service Label,BV Code,Amount,Period
Slough Borough Council,804709,247 Careservices Ltd,M44D,Adult Social Care Operations,Supplies and Services,"11,160.00",Apr-23
Slough Borough Council,806901,4way Consulting Ltd,P240,Capital,Supplies and Services,"4,000.00",Apr-23
Slough Borough Council,806901,4way Consulting Ltd,P209,Capital,Capital Charges,653.88,Apr-23
Slough Borough Council,806901,4way Consulting Ltd,P212,Capital,Capital Charges,"1,895.36",Apr-23
Slough Borough Council,806901,4way Consulting Ltd,P240,Capital,Capital Charges,"4,000.00",Apr-23
Slough Borough Council,806901,4way Consulting Ltd,P240,Capital,Capital Charges,"5,500.00",Apr-23
Slough Borough Council,1055,A J Chapman,F123,Education & Inclusion,Supplies and Services,"1,612.00",Apr-23
Slough Borough Council,1055,A J Chapman,F123,Education & Inclusion,Supplies and Services,"2,046.00",Apr-23
Slough Borough Council,1055,A J Chapman,F123,Education & Inclusion,Supplies and Services,"1,116.00",Apr-23
Slough Borough Council,1055,A J Chapman,F123,Education & Inclusion,Supplies and Services,"3,887.00",Apr-23
Slough Borough Council,1055,A J Chapman,F123,Education & Inclusion,Supplies and Services,"1,184.50",Apr-23
Slough Borough Council,1055,A J Chapman,F123,Education & Inclusion,Supplies and Services,"3,887.00",Apr-23
Slough Borough Council,1055,A J Chapman,F123,Education & Inclusion,Supplies and Services,"1,827.00",Apr-23
Slough Borough Council,1055,A J Chapman,F123,Education & Inclusion,Supplies and Services,"81,125.92",Apr-23
Slough Borough Council,1055,A J Chapman,M50A,Place Operations,Transport,"2,507.00",Apr-23
Slough Borough Council,536,Ability Housing Association,M42E,Adult Social Care Operations,Supplies and Services,"2,283.57",Apr-23
Slough Borough Council,536,Ability Housing Association,M42E,Adult Social Care Operations,Supplies and Services,"2,681.44",Apr-23
Slough Borough Council,536,Ability Housing Association,M42E,Adult Social Care Operations,Supplies and Services,"1,967.08",Apr-23
Slough Borough Council,536,Ability Housing Association,M42E,Adult Social Care Operations,Supplies and Services,"2,615.10",Apr-23
Slough Borough Council,536,Ability Housing Association,M42E,Adult Social Care Operations,Supplies and Services,"2,844.21",Apr-23
Slough Borough Council,536,Ability Housing Association,M42E,Adult Social Care Operations,Supplies and Services,"3,166.99",Apr-23
Slough Borough Council,536,Ability Housing Association,M42E,Adult Social Care Operations,Supplies and Services,"2,862.28",Apr-23
Slough Borough Council,536,Ability Housing Association,M42E,Adult Social Care Operations,Supplies and Services,"2,835.72",Apr-23
Slough Borough Council,536,Ability Housing Association,M42E,Adult Social Care Operations,Supplies and Services,"3,261.53",Apr-23
Slough Borough Council,536,Ability Housing Association,M42E,Adult Social Care Operations,Supplies and Services,"1,816.09",Apr-23
Slough Borough Council,536,Ability Housing Association,M42E,Adult Social Care Operations,Supplies and Services,"2,752.50",Apr-23
Slough Borough Council,536,Ability Housing Association,M42E,Adult Social Care Operations,Supplies and Services,"1,532.71",Apr-23
Slough Borough Council,536,Ability Housing Association,M42E,Adult Social Care Operations,Supplies and Services,"2,010.66",Apr-23
Slough Borough Council,536,Ability Housing Association,M42E,Adult Social Care Operations,Supplies and Services,"2,585.50",Apr-23
Slough Borough Council,536,Ability Housing Association,M42E,Adult Social Care Operations,Supplies and Services,"2,788.84",Apr-23
Slough Borough Council,536,Ability Housing Association,M42E,Adult Social Care Operations,Supplies and Services,"2,945.89",Apr-23
Slough Borough Council,536,Ability Housing Association,M42E,Adult Social Care Operations,Supplies and Services,"2,576.64",Apr-23
Slough Borough Council,536,Ability Housing Association,M42E,Adult Social Care Operations,Supplies and Services,"2,585.29",Apr-23
Slough Borough Council,536,Ability Housing Association,M42E,Adult Social Care Operations,Supplies and Services,"3,023.04",Apr-23
Slough Borough Council,536,Ability Housing Association,M42E,Adult Social Care Operations,Supplies and Services,"2,412.22",Apr-23
Slough Borough Council,536,Ability Housing Association,M42E,Adult Social Care Operations,Supplies and Services,"3,490.51",Apr-23
Slough Borough Council,536,Ability Housing Association,M42E,Adult Social Care Operations,Supplies and Services,"1,219.96",Apr-23
Slough Borough Council,536,Ability Housing Association,M42E,Adult Social Care Operations,Supplies and Services,"2,912.20",Apr-23
Slough Borough Council,536,Ability Housing Association,M42E,Adult Social Care Operations,Supplies and Services,"2,968.73",Apr-23
Slough Borough Council,536,Ability Housing Association,M42E,Adult Social Care Operations,Supplies and Services,"2,670.66",Apr-23
Slough Borough Council,536,Ability Housing Association,M42E,Adult Social Care Operations,Supplies and Services,"1,350.66",Apr-23
Slough Borough Council,536,Ability Housing Association,M42E,Adult Social Care Operations,Supplies and Services,"2,730.48",Apr-23
Slough Borough Council,536,Ability Housing Association,M42E,Adult Social Care Operations,Supplies and Services,"1,776.71",Apr-23
Slough Borough Council,536,Ability Housing Association,M42E,Adult Social Care Operations,Supplies and Services,"3,234.04",Apr-23
Slough Borough Council,536,Ability Housing Association,M42E,Adult Social Care Operations,Supplies and Services,"2,518.95",Apr-23
Slough Borough Council,536,Ability Housing Association,M42E,Adult Social Care Operations,Supplies and Services,"2,072.41",Apr-23
Slough Borough Council,536,Ability Housing Association,M42E,Adult Social Care Operations,Supplies and Services,"1,384.38",Apr-23
Slough Borough Council,536,Ability Housing Association,M42E,Adult Social Care Operations,Supplies and Services,"2,895.29",Apr-23
Slough Borough Council,536,Ability Housing Association,M42E,Adult Social Care Operations,Supplies and Services,"2,852.71",Apr-23
Slough Borough Council,536,Ability Housing Association,M42E,Adult Social Care Operations,Supplies and Services,"2,682.39",Apr-23
Slough Borough Council,536,Ability Housing Association,M42E,Adult Social Care Operations,Supplies and Services,"2,561.29",Apr-23
Slough Borough Council,536,Ability Housing Association,M44E,Adult Social Care Operations,Supplies and Services,"2,354.72",Apr-23
Slough Borough Council,536,Ability Housing Association,M44E,Adult Social Care Operations,Supplies and Services,"1,738.39",Apr-23
Slough Borough Council,536,Ability Housing Association,M44E,Adult Social Care Operations,Supplies and Services,"1,997.04",Apr-23
Slough Borough Council,536,Ability Housing Association,M44E,Adult Social Care Operations,Supplies and Services,"1,924.65",Apr-23
Slough Borough Council,536,Ability Housing Association,M44E,Adult Social Care Operations,Supplies and Services,"2,203.76",Apr-23
Slough Borough Council,536,Ability Housing Association,M44E,Adult Social Care Operations,Supplies and Services,"2,439.88",Apr-23
Slough Borough Council,536,Ability Housing Association,M44E,Adult Social Care Operations,Supplies and Services,"1,803.77",Apr-23
Slough Borough Council,536,Ability Housing Association,M44E,Adult Social Care Operations,Supplies and Services,"2,126.84",Apr-23
Slough Borough Council,2898,Achieve Together t/a The Regard Partnership Ltd,M26E,Adult Social Care Operations,Supplies and Services,"7,278.43",Apr-23
Slough Borough Council,2898,Achieve Together t/a The Regard Partnership Ltd,M26E,Adult Social Care Operations,Supplies and Services,"6,147.17",Apr-23
Slough Borough Council,2898,Achieve Together t/a The Regard Partnership Ltd,M42E,Adult Social Care Operations,Supplies and Services,"5,066.23",Apr-23
Slough Borough Council,2898,Achieve Together t/a The Regard Partnership Ltd,M42E,Adult Social Care Operations,Supplies and Services,"5,387.70",Apr-23
Slough Borough Council,2898,Achieve Together t/a The Regard Partnership Ltd,M42E,Adult Social Care Operations,Supplies and Services,"5,162.44",Apr-23
Slough Borough Council,2898,Achieve Together t/a The Regard Partnership Ltd,M42E,Adult Social Care Operations,Supplies and Services,"6,562.71",Apr-23
Slough Borough Council,2898,Achieve Together t/a The Regard Partnership Ltd,M42E,Adult Social Care Operations,Supplies and Services,"6,786.99",Apr-23
Slough Borough Council,2898,Achieve Together t/a The Regard Partnership Ltd,M42E,Adult Social Care Operations,Supplies and Services,"5,040.04",Apr-23
Slough Borough Council,2898,Achieve Together t/a The Regard Partnership Ltd,M42E,Adult Social Care Operations,Supplies and Services,"6,347.57",Apr-23
Slough Borough Council,2898,Achieve Together t/a The Regard Partnership Ltd,M44D,Adult Social Care Operations,Supplies and Services,"4,684.71",Apr-23
Slough Borough Council,2898,Achieve Together t/a The Regard Partnership Ltd,M44E,Adult Social Care Operations,Supplies and Services,"5,630.79",Apr-23
Slough Borough Council,3292,Achieving For Children,F416,Education & Inclusion,Supplies and Services,"68,860.00",Apr-23
Slough Borough Council,808703,Adam Haigh,C322,Community,Supplies and Services,750.00,Apr-23
Slough Borough Council,807832,Adaptec Mobility Ltd,P006,Capital,Capital Charges,"5,976.50",Apr-23
Slough Borough Council,2135,Adventure Learning Childcare Limited,F909,Children & Families,Supplies and Services,"11,657.00",Apr-23
Slough Borough Council,1603,Advision Security Ltd,A07M,Mental Health Services,Premises,"4,040.00",Apr-23
Slough Borough Council,805178,AFM Transport Limited,D750,Place Operations,Supplies and Services,"1,042.85",Apr-23
Slough Borough Council,805178,AFM Transport Limited,D880,Place Operations,Supplies and Services,"4,096.80",Apr-23
Slough Borough Council,805178,AFM Transport Limited,D880,Place Operations,Supplies and Services,"2,911.82",Apr-23
Slough Borough Council,805178,AFM Transport Limited,D880,Place Operations,Supplies and Services,525.85,Apr-23
Slough Borough Council,805178,AFM Transport Limited,D880,Place Operations,Supplies and Services,"3,491.98",Apr-23
Slough Borough Council,2301,Aik Saath,F382,Children & Families,Supplies and Services,"6,950.00",Apr-23
Slough Borough Council,806268,Allied Publicity Services (Manchester) Limited,A120,Customer,Supplies and Services,985.97,Apr-23
Slough Borough Council,803273,Altia Solutions Ltd,B282,Digital and Strategic IT,Supplies and Services,"10,085.00",Apr-23
Slough Borough Council,2197,Altwood Housing Ltd,H205,Housing (People) Services,Supplies and Services,825.00,Apr-23
Slough Borough Council,2197,Altwood Housing Ltd,H205,Housing (People) Services,Supplies and Services,"1,240.00",Apr-23
Slough Borough Council,2197,Altwood Housing Ltd,H205,Housing (People) Services,Supplies and Services,675.00,Apr-23
Slough Borough Council,2197,Altwood Housing Ltd,H205,Housing (People) Services,Supplies and Services,"1,798.00",Apr-23
Slough Borough Council,2197,Altwood Housing Ltd,H205,Housing (People) Services,Supplies and Services,825.00,Apr-23
Slough Borough Council,2197,Altwood Housing Ltd,H205,Housing (People) Services,Supplies and Services,825.00,Apr-23
Slough Borough Council,2197,Altwood Housing Ltd,H205,Housing (People) Services,Supplies and Services,837.00,Apr-23
Slough Borough Council,2197,Altwood Housing Ltd,H205,Housing (People) Services,Supplies and Services,825.00,Apr-23
Slough Borough Council,2197,Altwood Housing Ltd,H205,Housing (People) Services,Supplies and Services,825.00,Apr-23
Slough Borough Council,2197,Altwood Housing Ltd,H205,Housing (People) Services,Supplies and Services,"2,015.00",Apr-23
Slough Borough Council,86,Altwood Properties Ltd,H205,Housing (People) Services,Premises,"52,476.56",Apr-23
Slough Borough Council,807515,Always Growing Together Community Interest Company Limited,F909,Children & Families,Supplies and Services,"9,263.28",Apr-23
Slough Borough Council,808191,Ambrose Adrian Healthcare Ltd,M44E,Adult Social Care Operations,Supplies and Services,"3,800.00",Apr-23
Slough Borough Council,808191,Ambrose Adrian Healthcare Ltd,M44E,Adult Social Care Operations,Supplies and Services,950.00,Apr-23
Slough Borough Council,805264,Ameresco Limited,P168,Capital,Supplies and Services,"1,231.00",Apr-23
Slough Borough Council,807893,Antz Kidz Activity Centre,F382,Children & Families,Supplies and Services,"1,460.25",Apr-23
Slough Borough Council,3137,Applegarth Care Home Ltd,M25C,Adult Social Care Operations,Supplies and Services,"3,600.00",Apr-23
Slough Borough Council,3137,Applegarth Care Home Ltd,M25C,Adult Social Care Operations,Supplies and Services,"3,200.00",Apr-23
Slough Borough Council,3350,Arbour Vale School,E610,Children & Families,Supplies and Services,"460,607.17",Apr-23
Slough Borough Council,2073,Arc Preschool,F909,Children & Families,Supplies and Services,"5,921.14",Apr-23
Slough Borough Council,831,Argos Business Solutions Ltd,H055,Finance & Commercial,Supplies and Services,"10,758.60",Apr-23
Slough Borough Council,831,Argos Business Solutions Ltd,H055,Finance & Commercial,Supplies and Services,"12,857.75",Apr-23
Slough Borough Council,831,Argos Business Solutions Ltd,H055,Finance & Commercial,Supplies and Services,"19,561.33",Apr-23
Slough Borough Council,1826,Arvato Public Sector Services Ltd,B007,Finance & Commercial,Supplies and Services,"-1,572.50",Apr-23
Slough Borough Council,1826,Arvato Public Sector Services Ltd,B007,Finance & Commercial,Supplies and Services,"-12,735.36",Apr-23
Slough Borough Council,1826,Arvato Public Sector Services Ltd,B007,Finance & Commercial,Supplies and Services,"-13,880.00",Apr-23
Slough Borough Council,1985,Ascentis,F210,Community,Supplies and Services,675.00,Apr-23
Slough Borough Council,420,Ashburn Estate Agents,H205,Housing (People) Services,Premises,"121,374.00",Apr-23
Slough Borough Council,3666,Assisted Living South West,M26E,Adult Social Care Operations,Supplies and Services,"5,105.00",Apr-23
Slough Borough Council,3666,Assisted Living South West,M26E,Adult Social Care Operations,Supplies and Services,"6,778.96",Apr-23
Slough Borough Council,570,Atkins Limited,P209,Capital,Capital Charges,"10,500.00",Apr-23
Slough Borough Council,570,Atkins Limited,P209,Capital,Capital Charges,"6,000.00",Apr-23
Slough Borough Council,3370,Baylis Court School,E610,Children & Families,Supplies and Services,"4,333.34",Apr-23
Slough Borough Council,1681,Bcq,B240,Business Services,Supplies and Services,502.00,Apr-23
Slough Borough Council,1681,Bcq,B240,Business Services,Supplies and Services,"2,594.00",Apr-23
Slough Borough Council,1681,Bcq,B240,Business Services,Supplies and Services,"1,806.00",Apr-23
Slough Borough Council,1681,Bcq,B240,Business Services,Supplies and Services,737.00,Apr-23
Slough Borough Council,1681,Bcq,B240,Business Services,Supplies and Services,"7,702.00",Apr-23
Slough Borough Council,1681,Bcq,B240,Business Services,Supplies and Services,"5,495.00",Apr-23
Slough Borough Council,1681,Bcq,B240,Business Services,Supplies and Services,"1,366.00",Apr-23
Slough Borough Council,1681,Bcq,B240,Business Services,Supplies and Services,"8,931.00",Apr-23
Slough Borough Council,1681,Bcq,B240,Business Services,Supplies and Services,685.00,Apr-23
Slough Borough Council,1681,Bcq,B246,Governance,Supplies and Services,864.00,Apr-23
Slough Borough Council,1681,Bcq,B240,Business Services,Supplies and Services,"1,253.00",Apr-23
Slough Borough Council,1681,Bcq,D610,Place Operations,Supplies and Services,"1,700.00",Apr-23
Slough Borough Council,3208,Be Happy Pre School,F909,Children & Families,Supplies and Services,"12,214.36",Apr-23
Slough Borough Council,3208,Be Happy Pre School,F909,Children & Families,Supplies and Services,"6,747.25",Apr-23
Slough Borough Council,805539,Beech Haven Ltd,M27C,Adult Social Care Operations,Supplies and Services,"3,277.14",Apr-23
Slough Borough Council,609,Beechwood Secondary School,E610,Children & Families,Supplies and Services,"6,125.00",Apr-23
Slough Borough Council,804588,BEN Motor & Allied Trades Bev.Fnd,M15D,Adult Social Care Operations,Supplies and Services,"6,400.00",Apr-23
Slough Borough Council,804588,BEN Motor & Allied Trades Bev.Fnd,M15D,Adult Social Care Operations,Supplies and Services,"6,400.00",Apr-23
Slough Borough Council,804588,BEN Motor & Allied Trades Bev.Fnd,M15D,Adult Social Care Operations,Supplies and Services,"6,400.00",Apr-23
Slough Borough Council,804588,BEN Motor & Allied Trades Bev.Fnd,M15D,Adult Social Care Operations,Supplies and Services,"6,400.00",Apr-23
Slough Borough Council,804588,BEN Motor & Allied Trades Bev.Fnd,M18C,Adult Social Care Operations,Supplies and Services,"5,800.00",Apr-23
Slough Borough Council,804588,BEN Motor & Allied Trades Bev.Fnd,M18C,Adult Social Care Operations,Supplies and Services,"3,107.14",Apr-23
Slough Borough Council,804588,BEN Motor & Allied Trades Bev.Fnd,M18C,Adult Social Care Operations,Supplies and Services,"-5,800.00",Apr-23
Slough Borough Council,804588,BEN Motor & Allied Trades Bev.Fnd,M18C,Adult Social Care Operations,Supplies and Services,"-3,107.14",Apr-23
Slough Borough Council,804588,BEN Motor & Allied Trades Bev.Fnd,M18C,Adult Social Care Operations,Supplies and Services,"-5,800.00",Apr-23
Slough Borough Council,804588,BEN Motor & Allied Trades Bev.Fnd,M18C,Adult Social Care Operations,Supplies and Services,"5,800.00",Apr-23
Slough Borough Council,804588,BEN Motor & Allied Trades Bev.Fnd,M27C,Adult Social Care Operations,Supplies and Services,"5,600.00",Apr-23
Slough Borough Council,804588,BEN Motor & Allied Trades Bev.Fnd,M27C,Adult Social Care Operations,Supplies and Services,"5,600.00",Apr-23
Slough Borough Council,808148,BEST CHOICE CARE LTD,M45C,Adult Social Care Operations,Supplies and Services,612.64,Apr-23
Slough Borough Council,1736,Bevan Brittan Llp,P242,Capital,Capital Charges,"25,054.00",Apr-23
Slough Borough Council,803828,Blue Willow Day Nursery Ltd,F909,Children & Families,Supplies and Services,"27,353.32",Apr-23
Slough Borough Council,971,Bournemouth University,A07M,Mental Health Services,Supplies and Services,"5,000.00",Apr-23
Slough Borough Council,805160,Bouygues E&S FM UK Limited,K521,Business Services,Premises,"4,799.81",Apr-23
Slough Borough Council,2856,Brain Injury Rehabilitation Trust,M26E,Adult Social Care Operations,Supplies and Services,"5,949.16",Apr-23
Slough Borough Council,805179,Braywood Tree Surgery Ltd,P220,Capital,Capital Charges,"1,056.72",Apr-23
Slough Borough Council,805179,Braywood Tree Surgery Ltd,P220,Capital,Capital Charges,"1,056.72",Apr-23
Slough Borough Council,805817,Bright World Nurseries,F909,Children & Families,Supplies and Services,"10,772.90",Apr-23
Slough Borough Council,617,British Telecommunications,K089,Place Regulation,Supplies and Services,"1,933.93",Apr-23
Slough Borough Council,504,Britwell Baptist Pre School,F909,Children & Families,Supplies and Services,"5,319.74",Apr-23
Slough Borough Council,741,Bunnies Pre-School,F909,Children & Families,Supplies and Services,"6,510.92",Apr-23
Slough Borough Council,804448,Bupa Care Homes (ANS) Ltd,M15D,Adult Social Care Operations,Supplies and Services,"5,821.18",Apr-23
Slough Borough Council,804448,Bupa Care Homes (ANS) Ltd,M26E,Adult Social Care Operations,Supplies and Services,"7,528.57",Apr-23
Slough Borough Council,629,C.H.O.I.C.E Limited,M26E,Adult Social Care Operations,Supplies and Services,"9,499.59",Apr-23
Slough Borough Council,629,C.H.O.I.C.E Limited,M26E,Adult Social Care Operations,Supplies and Services,"12,502.24",Apr-23
Slough Borough Council,629,C.H.O.I.C.E Limited,M42E,Adult Social Care Operations,Supplies and Services,"4,030.43",Apr-23
Slough Borough Council,629,C.H.O.I.C.E Limited,M44F,Adult Social Care Operations,Supplies and Services,"2,764.53",Apr-23
Slough Borough Council,806459,Cambridgeshire County Council,F123,Education & Inclusion,Supplies and Services,759.61,Apr-23
Slough Borough Council,806459,Cambridgeshire County Council,F123,Education & Inclusion,Supplies and Services,661.50,Apr-23
Slough Borough Council,808007,Cameron & Cooper Limited (The Beech House School),F462,Children & Families,Supplies and Services,"2,420.98",Apr-23
Slough Borough Council,807068,Capita Business Services Limited,H015,Finance & Commercial,Supplies and Services,"237,935.58",Apr-23
Slough Borough Council,805717,Care Management Group Ltd,M26E,Adult Social Care Operations,Supplies and Services,"14,410.75",Apr-23
Slough Borough Council,805621,Care Staff Services,A07R,Adult Social Care Operations,Supplies and Services,770.00,Apr-23
Slough Borough Council,805621,Care Staff Services,A07R,Adult Social Care Operations,Supplies and Services,857.50,Apr-23
Slough Borough Council,805621,Care Staff Services,A07R,Adult Social Care Operations,Supplies and Services,555.63,Apr-23
Slough Borough Council,805621,Care Staff Services,A07R,Adult Social Care Operations,Supplies and Services,560.00,Apr-23
Slough Borough Council,805621,Care Staff Services,M44C,Adult Social Care Operations,Supplies and Services,"1,456.88",Apr-23
Slough Borough Council,805621,Care Staff Services,M44C,Adult Social Care Operations,Supplies and Services,647.50,Apr-23
Slough Borough Council,805621,Care Staff Services,M44C,Adult Social Care Operations,Supplies and Services,906.50,Apr-23
Slough Borough Council,805621,Care Staff Services,M44C,Adult Social Care Operations,Supplies and Services,"1,102.50",Apr-23
Slough Borough Council,805621,Care Staff Services,M44C,Adult Social Care Operations,Supplies and Services,906.50,Apr-23
Slough Borough Council,805621,Care Staff Services,M44C,Adult Social Care Operations,Supplies and Services,686.88,Apr-23
Slough Borough Council,805621,Care Staff Services,M44C,Adult Social Care Operations,Supplies and Services,805.00,Apr-23
Slough Borough Council,805621,Care Staff Services,M44C,Adult Social Care Operations,Supplies and Services,"1,102.50",Apr-23
Slough Borough Council,805621,Care Staff Services,M44C,Adult Social Care Operations,Supplies and Services,927.50,Apr-23
Slough Borough Council,805621,Care Staff Services,M44C,Adult Social Care Operations,Supplies and Services,"2,205.00",Apr-23
Slough Borough Council,805621,Care Staff Services,M44C,Adult Social Care Operations,Supplies and Services,"1,239.50",Apr-23
Slough Borough Council,805621,Care Staff Services,M44C,Adult Social Care Operations,Supplies and Services,752.50,Apr-23
Slough Borough Council,805621,Care Staff Services,M44C,Adult Social Care Operations,Supplies and Services,997.50,Apr-23
Slough Borough Council,805621,Care Staff Services,M44C,Adult Social Care Operations,Supplies and Services,"2,450.00",Apr-23
Slough Borough Council,805621,Care Staff Services,M44C,Adult Social Care Operations,Supplies and Services,"1,102.50",Apr-23
Slough Borough Council,805621,Care Staff Services,M44C,Adult Social Care Operations,Supplies and Services,906.50,Apr-23
Slough Borough Council,805621,Care Staff Services,M44C,Adult Social Care Operations,Supplies and Services,735.00,Apr-23
Slough Borough Council,805621,Care Staff Services,M44C,Adult Social Care Operations,Supplies and Services,"1,120.00",Apr-23
Slough Borough Council,805621,Care Staff Services,M44C,Adult Social Care Operations,Supplies and Services,"1,813.00",Apr-23
Slough Borough Council,805621,Care Staff Services,M44C,Adult Social Care Operations,Supplies and Services,518.00,Apr-23
Slough Borough Council,805621,Care Staff Services,M44C,Adult Social Care Operations,Supplies and Services,536.50,Apr-23
Slough Borough Council,805621,Care Staff Services,M44C,Adult Social Care Operations,Supplies and Services,"2,205.00",Apr-23
Slough Borough Council,805621,Care Staff Services,M44C,Adult Social Care Operations,Supplies and Services,962.50,Apr-23
Slough Borough Council,805621,Care Staff Services,M44C,Adult Social Care Operations,Supplies and Services,"2,275.00",Apr-23
Slough Borough Council,805621,Care Staff Services,M44C,Adult Social Care Operations,Supplies and Services,"2,590.00",Apr-23
Slough Borough Council,805621,Care Staff Services,M44C,Adult Social Care Operations,Supplies and Services,721.50,Apr-23
Slough Borough Council,805621,Care Staff Services,M44C,Adult Social Care Operations,Supplies and Services,612.50,Apr-23
Slough Borough Council,805621,Care Staff Services,M44C,Adult Social Care Operations,Supplies and Services,518.00,Apr-23
Slough Borough Council,805621,Care Staff Services,M44C,Adult Social Care Operations,Supplies and Services,"2,331.00",Apr-23
Slough Borough Council,805621,Care Staff Services,M44C,Adult Social Care Operations,Supplies and Services,906.50,Apr-23
Slough Borough Council,805621,Care Staff Services,M44C,Adult Social Care Operations,Supplies and Services,686.88,Apr-23
Slough Borough Council,805621,Care Staff Services,M44C,Adult Social Care Operations,Supplies and Services,857.50,Apr-23
Slough Borough Council,805621,Care Staff Services,M44C,Adult Social Care Operations,Supplies and Services,518.00,Apr-23
Slough Borough Council,805621,Care Staff Services,M44C,Adult Social Care Operations,Supplies and Services,"2,205.00",Apr-23
Slough Borough Council,805621,Care Staff Services,M44C,Adult Social Care Operations,Supplies and Services,906.50,Apr-23
Slough Borough Council,805621,Care Staff Services,M44C,Adult Social Care Operations,Supplies and Services,555.00,Apr-23
Slough Borough Council,805621,Care Staff Services,M44C,Adult Social Care Operations,Supplies and Services,857.50,Apr-23
Slough Borough Council,805621,Care Staff Services,M44C,Adult Social Care Operations,Supplies and Services,752.50,Apr-23
Slough Borough Council,805621,Care Staff Services,M44C,Adult Social Care Operations,Supplies and Services,629.00,Apr-23
Slough Borough Council,805621,Care Staff Services,M44C,Adult Social Care Operations,Supplies and Services,"2,030.00",Apr-23
Slough Borough Council,805621,Care Staff Services,M44C,Adult Social Care Operations,Supplies and Services,518.00,Apr-23
Slough Borough Council,805621,Care Staff Services,M44C,Adult Social Care Operations,Supplies and Services,"1,165.50",Apr-23
Slough Borough Council,805621,Care Staff Services,M44C,Adult Social Care Operations,Supplies and Services,777.00,Apr-23
Slough Borough Council,805621,Care Staff Services,M44C,Adult Social Care Operations,Supplies and Services,717.50,Apr-23
Slough Borough Council,805621,Care Staff Services,M44C,Adult Social Care Operations,Supplies and Services,"1,102.50",Apr-23
Slough Borough Council,805621,Care Staff Services,M44C,Adult Social Care Operations,Supplies and Services,"1,813.00",Apr-23
Slough Borough Council,805621,Care Staff Services,M44C,Adult Social Care Operations,Supplies and Services,"1,041.25",Apr-23
Slough Borough Council,805621,Care Staff Services,M44D,Adult Social Care Operations,Supplies and Services,"2,247.75",Apr-23
Slough Borough Council,805621,Care Staff Services,M44D,Adult Social Care Operations,Supplies and Services,"1,165.50",Apr-23
Slough Borough Council,805621,Care Staff Services,M44D,Adult Social Care Operations,Supplies and Services,"1,470.00",Apr-23
Slough Borough Council,805621,Care Staff Services,M44D,Adult Social Care Operations,Supplies and Services,857.50,Apr-23
Slough Borough Council,805621,Care Staff Services,M44D,Adult Social Care Operations,Supplies and Services,643.13,Apr-23
Slough Borough Council,805621,Care Staff Services,M44D,Adult Social Care Operations,Supplies and Services,518.00,Apr-23
Slough Borough Council,805621,Care Staff Services,M44D,Adult Social Care Operations,Supplies and Services,997.50,Apr-23
Slough Borough Council,805621,Care Staff Services,M44D,Adult Social Care Operations,Supplies and Services,"1,785.00",Apr-23
Slough Borough Council,805621,Care Staff Services,M44D,Adult Social Care Operations,Supplies and Services,777.00,Apr-23
Slough Borough Council,805621,Care Staff Services,M44D,Adult Social Care Operations,Supplies and Services,"1,295.00",Apr-23
Slough Borough Council,805621,Care Staff Services,M44D,Adult Social Care Operations,Supplies and Services,"1,165.50",Apr-23
Slough Borough Council,805621,Care Staff Services,M44D,Adult Social Care Operations,Supplies and Services,818.63,Apr-23
Slough Borough Council,805621,Care Staff Services,M44D,Adult Social Care Operations,Supplies and Services,"1,216.25",Apr-23
Slough Borough Council,805621,Care Staff Services,M44F,Adult Social Care Operations,Supplies and Services,560.00,Apr-23
Slough Borough Council,805621,Care Staff Services,M44F,Adult Social Care Operations,Supplies and Services,740.00,Apr-23
Slough Borough Council,805621,Care Staff Services,M44F,Adult Social Care Operations,Supplies and Services,"1,111.25",Apr-23
Slough Borough Council,805621,Care Staff Services,M44F,Adult Social Care Operations,Supplies and Services,"2,590.00",Apr-23
Slough Borough Council,805621,Care Staff Services,M44F,Adult Social Care Operations,Supplies and Services,"1,382.50",Apr-23
Slough Borough Council,805621,Care Staff Services,M44F,Adult Social Care Operations,Supplies and Services,608.13,Apr-23
Slough Borough Council,805621,Care Staff Services,M44F,Adult Social Care Operations,Supplies and Services,666.00,Apr-23
Slough Borough Council,805621,Care Staff Services,M44F,Adult Social Care Operations,Supplies and Services,999.00,Apr-23
Slough Borough Council,805621,Care Staff Services,M44F,Adult Social Care Operations,Supplies and Services,888.00,Apr-23
Slough Borough Council,805621,Care Staff Services,M44F,Adult Social Care Operations,Supplies and Services,581.88,Apr-23
Slough Borough Council,805621,Care Staff Services,M45C,Adult Social Care Operations,Supplies and Services,"2,205.00",Apr-23
Slough Borough Council,805621,Care Staff Services,M45C,Adult Social Care Operations,Supplies and Services,840.00,Apr-23
Slough Borough Council,805621,Care Staff Services,M45C,Adult Social Care Operations,Supplies and Services,"2,187.50",Apr-23
Slough Borough Council,805621,Care Staff Services,M45C,Adult Social Care Operations,Supplies and Services,713.13,Apr-23
Slough Borough Council,805621,Care Staff Services,M45C,Adult Social Care Operations,Supplies and Services,520.63,Apr-23
Slough Borough Council,805621,Care Staff Services,M48C,Adult Social Care Operations,Supplies and Services,"1,960.00",Apr-23
Slough Borough Council,808149,Care Staff Services Support,M44F,Adult Social Care Operations,Supplies and Services,"5,414.17",Apr-23
Slough Borough Council,808149,Care Staff Services Support,M44F,Adult Social Care Operations,Supplies and Services,"4,828.83",Apr-23
Slough Borough Council,808149,Care Staff Services Support,M44F,Adult Social Care Operations,Supplies and Services,"2,002.25",Apr-23
Slough Borough Council,1162,Care Uk Community Partnership Ltd,M15D,Adult Social Care Operations,Supplies and Services,"2,553.60",Apr-23
Slough Borough Council,1162,Care Uk Community Partnership Ltd,M15D,Adult Social Care Operations,Supplies and Services,"2,736.00",Apr-23
Slough Borough Council,1162,Care Uk Community Partnership Ltd,M15D,Adult Social Care Operations,Supplies and Services,"2,827.20",Apr-23
Slough Borough Council,1162,Care Uk Community Partnership Ltd,M15D,Adult Social Care Operations,Supplies and Services,"2,827.20",Apr-23
Slough Borough Council,1162,Care Uk Community Partnership Ltd,M15D,Adult Social Care Operations,Supplies and Services,"2,827.20",Apr-23
Slough Borough Council,1162,Care Uk Community Partnership Ltd,M15F,Adult Social Care Operations,Supplies and Services,"2,837.14",Apr-23
Slough Borough Council,1162,Care Uk Community Partnership Ltd,M15F,Adult Social Care Operations,Supplies and Services,"2,931.71",Apr-23
Slough Borough Council,1162,Care Uk Community Partnership Ltd,M15F,Adult Social Care Operations,Supplies and Services,"2,931.71",Apr-23
Slough Borough Council,1162,Care Uk Community Partnership Ltd,M15F,Adult Social Care Operations,Supplies and Services,"2,648.00",Apr-23
Slough Borough Council,1162,Care Uk Community Partnership Ltd,M15F,Adult Social Care Operations,Supplies and Services,"2,931.71",Apr-23
Slough Borough Council,1162,Care Uk Community Partnership Ltd,M27C,Adult Social Care Operations,Supplies and Services,"5,314.29",Apr-23
Slough Borough Council,1162,Care Uk Community Partnership Ltd,M27C,Adult Social Care Operations,Supplies and Services,"5,314.29",Apr-23
Slough Borough Council,1162,Care Uk Community Partnership Ltd,M27C,Adult Social Care Operations,Supplies and Services,"5,314.29",Apr-23
Slough Borough Council,1162,Care Uk Community Partnership Ltd,M27C,Adult Social Care Operations,Supplies and Services,"4,800.00",Apr-23
Slough Borough Council,1162,Care Uk Community Partnership Ltd,M27C,Adult Social Care Operations,Supplies and Services,"5,142.86",Apr-23
Slough Borough Council,1162,Care Uk Community Partnership Ltd,M29C,Adult Social Care Operations,Supplies and Services,"1,874.29",Apr-23
Slough Borough Council,1162,Care Uk Community Partnership Ltd,M29C,Adult Social Care Operations,Supplies and Services,937.14,Apr-23
Slough Borough Council,804413,Castle Water,B064,Business Services,Premises,"1,697.61",Apr-23
Slough Borough Council,804413,Castle Water,B068,Business Services,Premises,614.79,Apr-23
Slough Borough Council,804413,Castle Water,B068,Business Services,Premises,"1,000.00",Apr-23
Slough Borough Council,804413,Castle Water,B068,Business Services,Premises,"18,133.56",Apr-23
Slough Borough Council,804413,Castle Water,D412,Place Strategy & Infrastructure,Premises,924.80,Apr-23
Slough Borough Council,418,Castleview School,E620,Children & Families,Supplies and Services,"43,583.90",Apr-23
Slough Borough Council,808748,Causeway Technologies Limited,D610,Place Operations,Supplies and Services,"9,776.00",Apr-23
Slough Borough Council,808748,Causeway Technologies Limited,D620,Place Operations,Supplies and Services,"15,125.00",Apr-23
Slough Borough Council,808307,CDW Limited,B282,Digital and Strategic IT,Supplies and Services,"15,004.72",Apr-23
Slough Borough Council,803560,Centennial Property Limited T/A Rent Connect,H205,Housing (People) Services,Premises,"38,997.00",Apr-23
Slough Borough Council,805619,Centennial Property Limited T/A The Housing Network,H205,Housing (People) Services,Premises,"51,401.00",Apr-23
Slough Borough Council,3609,Centurion Healthcare Ltd,M26E,Adult Social Care Operations,Supplies and Services,"6,304.24",Apr-23
Slough Borough Council,2892,Chalfont Lodge,M15D,Adult Social Care Operations,Supplies and Services,"5,785.71",Apr-23
Slough Borough Council,2892,Chalfont Lodge,M15D,Adult Social Care Operations,Supplies and Services,"-1,714.29",Apr-23
Slough Borough Council,2892,Chalfont Lodge,M15F,Adult Social Care Operations,Supplies and Services,"8,571.43",Apr-23
Slough Borough Council,808500,Chartwell Care Services,M26E,Adult Social Care Operations,Supplies and Services,"12,601.84",Apr-23
Slough Borough Council,1877,Chelsie Innes,C322,Community,Supplies and Services,"5,436.50",Apr-23
Slough Borough Council,3114,Cherry Trees Day Nursery,F909,Children & Families,Supplies and Services,"28,046.53",Apr-23
Slough Borough Council,807225,Chiltern Way Academy,F551,Children & Families,Supplies and Services,"7,382.08",Apr-23
Slough Borough Council,803495,Christchurch Court Ltd,M15D,Adult Social Care Operations,Supplies and Services,"8,917.11",Apr-23
Slough Borough Council,807491,Cippenham School,E620,Children & Families,Supplies and Services,"14,772.83",Apr-23
Slough Borough Council,807491,Cippenham School,B297,Finance & Commercial,Government Grants,"4,387.50",Apr-23
Slough Borough Council,806364,City Furniture Hire Ltd,B240,Business Services,Supplies and Services,"4,875.57",Apr-23
Slough Borough Council,806550,City Homecare Ltd,A07R,Adult Social Care Operations,Supplies and Services,945.00,Apr-23
Slough Borough Council,806550,City Homecare Ltd,A07R,Adult Social Care Operations,Supplies and Services,"1,128.75",Apr-23
Slough Borough Council,806550,City Homecare Ltd,M44C,Adult Social Care Operations,Supplies and Services,848.75,Apr-23
Slough Borough Council,806550,City Homecare Ltd,M44C,Adult Social Care Operations,Supplies and Services,765.63,Apr-23
Slough Borough Council,806550,City Homecare Ltd,M44C,Adult Social Care Operations,Supplies and Services,"1,898.75",Apr-23
Slough Borough Council,806550,City Homecare Ltd,M44C,Adult Social Care Operations,Supplies and Services,"1,347.50",Apr-23
Slough Borough Council,806550,City Homecare Ltd,M44C,Adult Social Care Operations,Supplies and Services,599.38,Apr-23
Slough Borough Council,806550,City Homecare Ltd,M44C,Adult Social Care Operations,Supplies and Services,"1,102.50",Apr-23
Slough Borough Council,806550,City Homecare Ltd,M44C,Adult Social Care Operations,Supplies and Services,"1,225.00",Apr-23
Slough Borough Council,806550,City Homecare Ltd,M44C,Adult Social Care Operations,Supplies and Services,980.00,Apr-23
Slough Borough Council,806550,City Homecare Ltd,M44C,Adult Social Care Operations,Supplies and Services,"1,102.50",Apr-23
Slough Borough Council,806550,City Homecare Ltd,M44C,Adult Social Care Operations,Supplies and Services,"1,225.00",Apr-23
Slough Borough Council,806550,City Homecare Ltd,M44C,Adult Social Care Operations,Supplies and Services,"1,715.00",Apr-23
Slough Borough Council,806550,City Homecare Ltd,M44C,Adult Social Care Operations,Supplies and Services,"2,345.00",Apr-23
Slough Borough Council,806550,City Homecare Ltd,M44C,Adult Social Care Operations,Supplies and Services,"1,960.00",Apr-23
Slough Borough Council,806550,City Homecare Ltd,M44C,Adult Social Care Operations,Supplies and Services,"1,960.00",Apr-23
Slough Borough Council,806550,City Homecare Ltd,M44C,Adult Social Care Operations,Supplies and Services,857.50,Apr-23
Slough Borough Council,806550,City Homecare Ltd,M44C,Adult Social Care Operations,Supplies and Services,892.50,Apr-23
Slough Borough Council,806550,City Homecare Ltd,M44C,Adult Social Care Operations,Supplies and Services,"1,715.00",Apr-23
Slough Borough Council,806550,City Homecare Ltd,M44C,Adult Social Care Operations,Supplies and Services,"2,205.00",Apr-23
Slough Borough Council,806550,City Homecare Ltd,M44C,Adult Social Care Operations,Supplies and Services,857.50,Apr-23
Slough Borough Council,806550,City Homecare Ltd,M44C,Adult Social Care Operations,Supplies and Services,735.00,Apr-23
Slough Borough Council,806550,City Homecare Ltd,M44C,Adult Social Care Operations,Supplies and Services,787.50,Apr-23
Slough Borough Council,806550,City Homecare Ltd,M44C,Adult Social Care Operations,Supplies and Services,857.50,Apr-23
Slough Borough Council,806550,City Homecare Ltd,M44C,Adult Social Care Operations,Supplies and Services,945.00,Apr-23
Slough Borough Council,806550,City Homecare Ltd,M44C,Adult Social Care Operations,Supplies and Services,717.50,Apr-23
Slough Borough Council,806550,City Homecare Ltd,M44C,Adult Social Care Operations,Supplies and Services,"1,102.50",Apr-23
Slough Borough Council,806550,City Homecare Ltd,M44C,Adult Social Care Operations,Supplies and Services,"3,675.00",Apr-23
Slough Borough Council,806550,City Homecare Ltd,M44C,Adult Social Care Operations,Supplies and Services,892.50,Apr-23
Slough Borough Council,806550,City Homecare Ltd,M44C,Adult Social Care Operations,Supplies and Services,"1,960.00",Apr-23
Slough Borough Council,806550,City Homecare Ltd,M44C,Adult Social Care Operations,Supplies and Services,536.25,Apr-23
Slough Borough Council,806550,City Homecare Ltd,M44D,Adult Social Care Operations,Supplies and Services,717.50,Apr-23
Slough Borough Council,806550,City Homecare Ltd,M44D,Adult Social Care Operations,Supplies and Services,980.00,Apr-23
Slough Borough Council,806550,City Homecare Ltd,M44D,Adult Social Care Operations,Supplies and Services,"1,330.00",Apr-23
Slough Borough Council,806550,City Homecare Ltd,M44D,Adult Social Care Operations,Supplies and Services,"2,940.00",Apr-23
Slough Borough Council,806550,City Homecare Ltd,M44D,Adult Social Care Operations,Supplies and Services,980.00,Apr-23
Slough Borough Council,806550,City Homecare Ltd,M44D,Adult Social Care Operations,Supplies and Services,805.00,Apr-23
Slough Borough Council,806550,City Homecare Ltd,M44D,Adult Social Care Operations,Supplies and Services,980.00,Apr-23
Slough Borough Council,806550,City Homecare Ltd,M44E,Adult Social Care Operations,Supplies and Services,735.00,Apr-23
Slough Borough Council,806550,City Homecare Ltd,M44E,Adult Social Care Operations,Supplies and Services,735.00,Apr-23
Slough Borough Council,806550,City Homecare Ltd,M44E,Adult Social Care Operations,Supplies and Services,630.00,Apr-23
Slough Borough Council,806550,City Homecare Ltd,M44E,Adult Social Care Operations,Supplies and Services,735.00,Apr-23
Slough Borough Council,806550,City Homecare Ltd,M44F,Adult Social Care Operations,Supplies and Services,840.00,Apr-23
Slough Borough Council,806550,City Homecare Ltd,M44F,Adult Social Care Operations,Supplies and Services,840.00,Apr-23
Slough Borough Council,806550,City Homecare Ltd,M44F,Adult Social Care Operations,Supplies and Services,599.38,Apr-23
Slough Borough Council,806550,City Homecare Ltd,M45C,Adult Social Care Operations,Supplies and Services,647.50,Apr-23
Slough Borough Council,806550,City Homecare Ltd,M45C,Adult Social Care Operations,Supplies and Services,787.50,Apr-23
Slough Borough Council,806550,City Homecare Ltd,M45C,Adult Social Care Operations,Supplies and Services,691.25,Apr-23
Slough Borough Council,806550,City Homecare Ltd,M45C,Adult Social Care Operations,Supplies and Services,"1,540.00",Apr-23
Slough Borough Council,806550,City Homecare Ltd,M45C,Adult Social Care Operations,Supplies and Services,612.50,Apr-23
Slough Borough Council,806550,City Homecare Ltd,M45C,Adult Social Care Operations,Supplies and Services,566.25,Apr-23
Slough Borough Council,806550,City Homecare Ltd,M45C,Adult Social Care Operations,Supplies and Services,818.13,Apr-23
Slough Borough Council,806550,City Homecare Ltd,M48C,Adult Social Care Operations,Supplies and Services,857.50,Apr-23
Slough Borough Council,806550,City Homecare Ltd,M48C,Adult Social Care Operations,Supplies and Services,577.50,Apr-23
Slough Borough Council,1083,Civica Uk Limited,B342,Digital and Strategic IT,Supplies and Services,"6,710.00",Apr-23
Slough Borough Council,1083,Civica Uk Limited,H015,Finance & Commercial,Supplies and Services,"4,068.40",Apr-23
Slough Borough Council,1151,Claycots Primary School,E200,Children & Families,Supplies and Services,"846,192.59",Apr-23
Slough Borough Council,3685,Coghlan Lodges Limited,M44D,Adult Social Care Operations,Supplies and Services,"2,116.04",Apr-23
Slough Borough Council,3685,Coghlan Lodges Limited,M44F,Adult Social Care Operations,Supplies and Services,"1,870.00",Apr-23
Slough Borough Council,805823,Collaborative Care Solutions,M42E,Adult Social Care Operations,Supplies and Services,"8,000.00",Apr-23
Slough Borough Council,805823,Collaborative Care Solutions,M42E,Adult Social Care Operations,Supplies and Services,"9,211.42",Apr-23
Slough Borough Council,805823,Collaborative Care Solutions,M42E,Adult Social Care Operations,Supplies and Services,"8,914.28",Apr-23
Slough Borough Council,805823,Collaborative Care Solutions,M42E,Adult Social Care Operations,Supplies and Services,"8,000.00",Apr-23
Slough Borough Council,805823,Collaborative Care Solutions,M42E,Adult Social Care Operations,Supplies and Services,"8,320.00",Apr-23
Slough Borough Council,805823,Collaborative Care Solutions,M42F,Adult Social Care Operations,Supplies and Services,"2,971.57",Apr-23
Slough Borough Council,805823,Collaborative Care Solutions,M42F,Adult Social Care Operations,Supplies and Services,"2,875.71",Apr-23
Slough Borough Council,805823,Collaborative Care Solutions,M42F,Adult Social Care Operations,Supplies and Services,"2,657.14",Apr-23
Slough Borough Council,805823,Collaborative Care Solutions,M42F,Adult Social Care Operations,Supplies and Services,"2,571.42",Apr-23
Slough Borough Council,805823,Collaborative Care Solutions,M44D,Adult Social Care Operations,Supplies and Services,"8,914.28",Apr-23
Slough Borough Council,805823,Collaborative Care Solutions,M44D,Adult Social Care Operations,Supplies and Services,"9,211.42",Apr-23
Slough Borough Council,805823,Collaborative Care Solutions,M44F,Adult Social Care Operations,Supplies and Services,"4,317.85",Apr-23
Slough Borough Council,805823,Collaborative Care Solutions,M44F,Adult Social Care Operations,Supplies and Services,"4,178.57",Apr-23
Slough Borough Council,805823,Collaborative Care Solutions,M44F,Adult Social Care Operations,Supplies and Services,"4,982.14",Apr-23
Slough Borough Council,805823,Collaborative Care Solutions,M44F,Adult Social Care Operations,Supplies and Services,"4,821.42",Apr-23
Slough Borough Council,459,Colliers Cre,J006,Place Management,Supplies and Services,"3,666.67",Apr-23
Slough Borough Council,286,Colnbrook C Of E Primary School,E620,Children & Families,Supplies and Services,"21,981.67",Apr-23
Slough Borough Council,2535,Comfort Care Services,M27C,Adult Social Care Operations,Supplies and Services,"3,357.48",Apr-23
Slough Borough Council,2535,Comfort Care Services,M42E,Adult Social Care Operations,Supplies and Services,902.57,Apr-23
Slough Borough Council,2535,Comfort Care Services,M42E,Adult Social Care Operations,Supplies and Services,"2,250.00",Apr-23
Slough Borough Council,2535,Comfort Care Services,M42E,Adult Social Care Operations,Supplies and Services,"2,369.23",Apr-23
Slough Borough Council,2535,Comfort Care Services,M42E,Adult Social Care Operations,Supplies and Services,"2,550.00",Apr-23
Slough Borough Council,2535,Comfort Care Services,M42E,Adult Social Care Operations,Supplies and Services,"4,949.92",Apr-23
Slough Borough Council,2535,Comfort Care Services,M42E,Adult Social Care Operations,Supplies and Services,"1,128.21",Apr-23
Slough Borough Council,2535,Comfort Care Services,M42E,Adult Social Care Operations,Supplies and Services,"2,482.07",Apr-23
Slough Borough Council,2535,Comfort Care Services,M42E,Adult Social Care Operations,Supplies and Services,750.00,Apr-23
Slough Borough Council,2535,Comfort Care Services,M42E,Adult Social Care Operations,Supplies and Services,"1,128.21",Apr-23
Slough Borough Council,2535,Comfort Care Services,M42E,Adult Social Care Operations,Supplies and Services,"1,489.24",Apr-23
Slough Borough Council,2535,Comfort Care Services,M42F,Adult Social Care Operations,Supplies and Services,"3,362.14",Apr-23
Slough Borough Council,2535,Comfort Care Services,M42F,Adult Social Care Operations,Supplies and Services,"1,692.86",Apr-23
Slough Borough Council,2535,Comfort Care Services,M42F,Adult Social Care Operations,Supplies and Services,"1,430.31",Apr-23
Slough Borough Council,2535,Comfort Care Services,M42F,Adult Social Care Operations,Supplies and Services,"2,550.00",Apr-23
Slough Borough Council,2535,Comfort Care Services,M42F,Adult Social Care Operations,Supplies and Services,812.14,Apr-23
Slough Borough Council,2535,Comfort Care Services,M42F,Adult Social Care Operations,Supplies and Services,"1,258.84",Apr-23
Slough Borough Council,2535,Comfort Care Services,M42F,Adult Social Care Operations,Supplies and Services,812.14,Apr-23
Slough Borough Council,2535,Comfort Care Services,M42F,Adult Social Care Operations,Supplies and Services,"2,550.00",Apr-23
Slough Borough Council,2535,Comfort Care Services,M42F,Adult Social Care Operations,Supplies and Services,"2,550.00",Apr-23
Slough Borough Council,2535,Comfort Care Services,M42F,Adult Social Care Operations,Supplies and Services,812.14,Apr-23
Slough Borough Council,2535,Comfort Care Services,M42F,Adult Social Care Operations,Supplies and Services,"2,550.00",Apr-23
Slough Borough Council,2535,Comfort Care Services,M42F,Adult Social Care Operations,Supplies and Services,"3,768.21",Apr-23
Slough Borough Council,2535,Comfort Care Services,M42F,Adult Social Care Operations,Supplies and Services,"1,572.90",Apr-23
Slough Borough Council,2535,Comfort Care Services,M42F,Adult Social Care Operations,Supplies and Services,812.14,Apr-23
Slough Borough Council,2535,Comfort Care Services,M42F,Adult Social Care Operations,Supplies and Services,974.57,Apr-23
Slough Borough Council,2535,Comfort Care Services,M44E,Adult Social Care Operations,Supplies and Services,"2,072.57",Apr-23
Slough Borough Council,2535,Comfort Care Services,M44E,Adult Social Care Operations,Supplies and Services,"4,317.64",Apr-23
Slough Borough Council,2535,Comfort Care Services,M44F,Adult Social Care Operations,Supplies and Services,"1,579.65",Apr-23
Slough Borough Council,2535,Comfort Care Services,M44F,Adult Social Care Operations,Supplies and Services,"2,843.10",Apr-23
Slough Borough Council,2535,Comfort Care Services,M44F,Adult Social Care Operations,Supplies and Services,"3,204.13",Apr-23
Slough Borough Council,2535,Comfort Care Services,M44F,Adult Social Care Operations,Supplies and Services,"2,843.10",Apr-23
Slough Borough Council,2535,Comfort Care Services,M44F,Adult Social Care Operations,Supplies and Services,"1,275.00",Apr-23
Slough Borough Council,2535,Comfort Care Services,M44F,Adult Social Care Operations,Supplies and Services,"1,528.69",Apr-23
Slough Borough Council,2535,Comfort Care Services,M44F,Adult Social Care Operations,Supplies and Services,"1,128.21",Apr-23
Slough Borough Council,2535,Comfort Care Services,M44F,Adult Social Care Operations,Supplies and Services,"1,827.34",Apr-23
Slough Borough Council,2535,Comfort Care Services,M44F,Adult Social Care Operations,Supplies and Services,899.14,Apr-23
Slough Borough Council,2535,Comfort Care Services,M44F,Adult Social Care Operations,Supplies and Services,"3,362.14",Apr-23
Slough Borough Council,2535,Comfort Care Services,M44F,Adult Social Care Operations,Supplies and Services,"2,550.00",Apr-23
Slough Borough Council,2535,Comfort Care Services,M44F,Adult Social Care Operations,Supplies and Services,"2,262.43",Apr-23
Slough Borough Council,2535,Comfort Care Services,M44F,Adult Social Care Operations,Supplies and Services,"1,275.00",Apr-23
Slough Borough Council,2535,Comfort Care Services,M44F,Adult Social Care Operations,Supplies and Services,"2,843.10",Apr-23
Slough Borough Council,2535,Comfort Care Services,M81D,Adult Social Care Operations,Supplies and Services,"2,550.00",Apr-23
Slough Borough Council,2585,Comitted Care Services Limited,M26E,Adult Social Care Operations,Supplies and Services,"1,440.00",Apr-23
Slough Borough Council,2585,Comitted Care Services Limited,M26E,Adult Social Care Operations,Supplies and Services,"6,360.66",Apr-23
Slough Borough Council,2585,Comitted Care Services Limited,M26E,Adult Social Care Operations,Supplies and Services,"6,105.26",Apr-23
Slough Borough Council,2585,Comitted Care Services Limited,M26E,Adult Social Care Operations,Supplies and Services,"6,360.26",Apr-23
Slough Borough Council,2585,Comitted Care Services Limited,M26E,Adult Social Care Operations,Supplies and Services,"1,562.91",Apr-23
Slough Borough Council,2585,Comitted Care Services Limited,M42E,Adult Social Care Operations,Supplies and Services,"2,312.07",Apr-23
Slough Borough Council,2585,Comitted Care Services Limited,M42E,Adult Social Care Operations,Supplies and Services,"2,127.30",Apr-23
Slough Borough Council,2585,Comitted Care Services Limited,M26E,Adult Social Care Operations,External Receipts,-505.11,Apr-23
Slough Borough Council,804912,CommuniKate Ltd,M22D,Adult Social Care Operations,Supplies and Services,914.10,Apr-23
Slough Borough Council,1772,Computershare Voucher Services,B348,People,Supplies and Services,"1,998.00",Apr-23
Slough Borough Council,806683,Cornerstone OnDemand Limited,B409,Customer,Indirect Employee Expenses,"30,750.00",Apr-23
Slough Borough Council,3290,Corporate Collections London Borough Of Hillingdon,M26E,Adult Social Care Operations,Supplies and Services,"1,632.40",Apr-23
Slough Borough Council,3290,Corporate Collections London Borough Of Hillingdon,M26E,Adult Social Care Operations,Supplies and Services,"1,632.40",Apr-23
Slough Borough Council,3290,Corporate Collections London Borough Of Hillingdon,M26E,Adult Social Care Operations,Supplies and Services,"1,632.40",Apr-23
Slough Borough Council,3290,Corporate Collections London Borough Of Hillingdon,M26E,Adult Social Care Operations,Supplies and Services,"1,632.40",Apr-23
Slough Borough Council,805278,Countrystyle Recycling Ltd,D342,Place Operations,Supplies and Services,"2,525.00",Apr-23
Slough Borough Council,805278,Countrystyle Recycling Ltd,D342,Place Operations,Supplies and Services,"-5,867.80",Apr-23
Slough Borough Council,808737,COUNTY PRIVATE CLIENT LIMITED,H205,Housing (People) Services,Supplies and Services,"30,745.00",Apr-23
Slough Borough Council,3670,Craegmoor Birches Grove Priory,M27F,Adult Social Care Operations,Supplies and Services,"4,089.40",Apr-23
Slough Borough Council,3670,Craegmoor Birches Grove Priory,M27F,Adult Social Care Operations,Supplies and Services,"2,122.92",Apr-23
Slough Borough Council,1638,Creative Support Ltd,A02L,Adult Social Care Operations,Supplies and Services,"1,431.90",Apr-23
Slough Borough Council,1638,Creative Support Ltd,A02L,Adult Social Care Operations,Supplies and Services,"1,575.10",Apr-23
Slough Borough Council,1638,Creative Support Ltd,A02L,Adult Social Care Operations,Supplies and Services,"1,365.30",Apr-23
Slough Borough Council,1638,Creative Support Ltd,A02L,Adult Social Care Operations,Supplies and Services,"1,165.50",Apr-23
Slough Borough Council,1638,Creative Support Ltd,A02L,Adult Social Care Operations,Supplies and Services,"1,065.60",Apr-23
Slough Borough Council,1638,Creative Support Ltd,M42E,Adult Social Care Operations,Supplies and Services,"3,013.65",Apr-23
Slough Borough Council,1638,Creative Support Ltd,M42E,Adult Social Care Operations,Supplies and Services,"1,739.93",Apr-23
Slough Borough Council,1638,Creative Support Ltd,M42E,Adult Social Care Operations,Supplies and Services,"1,515.78",Apr-23
Slough Borough Council,1638,Creative Support Ltd,M42E,Adult Social Care Operations,Supplies and Services,"1,198.80",Apr-23
Slough Borough Council,1638,Creative Support Ltd,M42E,Adult Social Care Operations,Supplies and Services,"2,367.63",Apr-23
Slough Borough Council,1638,Creative Support Ltd,M42E,Adult Social Care Operations,Supplies and Services,"5,494.50",Apr-23
Slough Borough Council,1638,Creative Support Ltd,M44E,Adult Social Care Operations,Supplies and Services,982.35,Apr-23
Slough Borough Council,1638,Creative Support Ltd,M44E,Adult Social Care Operations,Supplies and Services,932.40,Apr-23
Slough Borough Council,1638,Creative Support Ltd,M44E,Adult Social Care Operations,Supplies and Services,"1,465.20",Apr-23
Slough Borough Council,1638,Creative Support Ltd,M44E,Adult Social Care Operations,Supplies and Services,699.30,Apr-23
Slough Borough Council,806983,Critiqom,H020,Finance & Commercial,Supplies and Services,"28,145.31",Apr-23
Slough Borough Council,806983,Critiqom,H020,Finance & Commercial,Supplies and Services,"1,556.01",Apr-23
Slough Borough Council,806983,Critiqom,H020,Finance & Commercial,Supplies and Services,732.21,Apr-23
Slough Borough Council,806983,Critiqom,H020,Finance & Commercial,Supplies and Services,"7,782.84",Apr-23
Slough Borough Council,806983,Critiqom,H020,Finance & Commercial,Supplies and Services,"1,492.06",Apr-23
Slough Borough Council,808383,Croft Brothers UK Limited,M50A,Place Operations,Transport,"1,021.61",Apr-23
Slough Borough Council,808853,Crown Hosting Data Centres Limited,B342,Digital and Strategic IT,Capital Charges,"17,115.00",Apr-23
Slough Borough Council,806900,CYXTERA TECHNOLOGY UK LIMITED,B282,Digital and Strategic IT,Supplies and Services,"19,844.14",Apr-23
Slough Borough Council,807288,David Allwood,C322,Community,Supplies and Services,"2,150.25",Apr-23
Slough Borough Council,2068,Dds Demolition,P242,Capital,Capital Charges,"72,975.50",Apr-23
Slough Borough Council,804903,Dennis Eagle Limited,D610,Place Operations,Supplies and Services,"1,492.54",Apr-23
Slough Borough Council,3554,Dimensions (Uk) Ltd,M42E,Adult Social Care Operations,Supplies and Services,"7,839.64",Apr-23
Slough Borough Council,3554,Dimensions (Uk) Ltd,M42E,Adult Social Care Operations,Supplies and Services,"7,489.87",Apr-23
Slough Borough Council,3554,Dimensions (Uk) Ltd,M42E,Adult Social Care Operations,Supplies and Services,"5,849.00",Apr-23
Slough Borough Council,3554,Dimensions (Uk) Ltd,M42E,Adult Social Care Operations,Supplies and Services,"6,115.64",Apr-23
Slough Borough Council,3554,Dimensions (Uk) Ltd,M42E,Adult Social Care Operations,Supplies and Services,"7,783.97",Apr-23
Slough Borough Council,3554,Dimensions (Uk) Ltd,M42E,Adult Social Care Operations,Supplies and Services,"7,479.24",Apr-23
Slough Borough Council,3554,Dimensions (Uk) Ltd,M42E,Adult Social Care Operations,Supplies and Services,"6,482.81",Apr-23
Slough Borough Council,3554,Dimensions (Uk) Ltd,M42E,Adult Social Care Operations,Supplies and Services,"6,151.69",Apr-23
Slough Borough Council,805483,Direct Tyre Managenent Ltd,D610,Place Operations,Transport,"-10,595.85",Apr-23
Slough Borough Council,805483,Direct Tyre Managenent Ltd,D610,Place Operations,Transport,"13,397.41",Apr-23
Slough Borough Council,805483,Direct Tyre Managenent Ltd,D610,Place Operations,Transport,"10,595.85",Apr-23
Slough Borough Council,805483,Direct Tyre Managenent Ltd,D620,Place Operations,Transport,"-2,847.71",Apr-23
Slough Borough Council,805483,Direct Tyre Managenent Ltd,D620,Place Operations,Transport,"2,847.71",Apr-23
Slough Borough Council,803306,Ditton Park Academy,E620,Children & Families,Supplies and Services,"33,740.87",Apr-23
Slough Borough Council,803306,Ditton Park Academy,B297,Finance & Commercial,Government Grants,"6,360.00",Apr-23
Slough Borough Council,1457,Dr Norman Gordon,D320,Place Operations,Premises,"2,309.18",Apr-23
Slough Borough Council,808794,DREAMS HOTEL LTD,H205,Housing (People) Services,Supplies and Services,"36,225.00",Apr-23
Slough Borough Council,808794,DREAMS HOTEL LTD,H205,Housing (People) Services,Supplies and Services,"26,541.67",Apr-23
Slough Borough Council,808794,DREAMS HOTEL LTD,H205,Housing (People) Services,Supplies and Services,"14,560.00",Apr-23
Slough Borough Council,808794,DREAMS HOTEL LTD,H205,Housing (People) Services,Supplies and Services,"43,400.00",Apr-23
Slough Borough Council,808505,Dresgef Services Limited,F382,Children & Families,Supplies and Services,"1,113.32",Apr-23
Slough Borough Council,803177,Early Steps Preschool,F909,Children & Families,Supplies and Services,"7,975.45",Apr-23
Slough Borough Council,808854,East Berkshire Primary Care Out of Hours Service,F002,Community,Government Grants,"9,000.00",Apr-23
Slough Borough Council,804924,Econ Engineering Limited,D880,Place Operations,Transport,"8,236.70",Apr-23
Slough Borough Council,803301,Eden Girls School,E610,Children & Families,Supplies and Services,"5,125.00",Apr-23
Slough Borough Council,807001,Elegant Care Services Ltd,M42E,Adult Social Care Operations,Supplies and Services,"6,767.95",Apr-23
Slough Borough Council,807001,Elegant Care Services Ltd,M42E,Adult Social Care Operations,Supplies and Services,"6,017.14",Apr-23
Slough Borough Council,807001,Elegant Care Services Ltd,M42E,Adult Social Care Operations,Supplies and Services,"9,857.14",Apr-23
Slough Borough Council,807001,Elegant Care Services Ltd,M42E,Adult Social Care Operations,Supplies and Services,"5,794.28",Apr-23
Slough Borough Council,807001,Elegant Care Services Ltd,M44C,Adult Social Care Operations,Supplies and Services,"6,767.14",Apr-23
Slough Borough Council,806355,Elysium Healthcare,M26E,Adult Social Care Operations,Supplies and Services,"11,044.68",Apr-23
Slough Borough Council,806355,Elysium Healthcare,M26E,Adult Social Care Operations,Supplies and Services,"9,576.52",Apr-23
Slough Borough Council,3752,Endurance Health,A07R,Adult Social Care Operations,Supplies and Services,763.09,Apr-23
Slough Borough Council,3752,Endurance Health,M44C,Adult Social Care Operations,Supplies and Services,780.94,Apr-23
Slough Borough Council,3752,Endurance Health,M44C,Adult Social Care Operations,Supplies and Services,758.64,Apr-23
Slough Borough Council,3752,Endurance Health,M45C,Adult Social Care Operations,Supplies and Services,874.07,Apr-23
Slough Borough Council,3752,Endurance Health,M45C,Adult Social Care Operations,Supplies and Services,876.45,Apr-23
Slough Borough Council,3752,Endurance Health,M45C,Adult Social Care Operations,Supplies and Services,622.98,Apr-23
Slough Borough Council,808417,Enerveo Limited,D413,Place Strategy & Infrastructure,Supplies and Services,"1,051.67",Apr-23
Slough Borough Council,805423,Enriched Care,M80F,Adult Social Care Operations,Supplies and Services,"1,701.30",Apr-23
Slough Borough Council,807310,Enterprise Rent-A-Car UK Limited trading as Enterprise Flex-E-Rent,B060,Business Services,Premises,"2,735.08",Apr-23
Slough Borough Council,807310,Enterprise Rent-A-Car UK Limited trading as Enterprise Flex-E-Rent,D620,Place Operations,Transport,"11,306.38",Apr-23
Slough Borough Council,807310,Enterprise Rent-A-Car UK Limited trading as Enterprise Flex-E-Rent,D750,Place Operations,Transport,"11,038.05",Apr-23
Slough Borough Council,807310,Enterprise Rent-A-Car UK Limited trading as Enterprise Flex-E-Rent,D880,Place Operations,Transport,"5,209.70",Apr-23
Slough Borough Council,808712,Eton End School Trust (Datchet) Ltd,F462,Children & Families,Supplies and Services,"6,027.00",Apr-23
Slough Borough Council,2677,Eton House Residential Home,M27C,Adult Social Care Operations,Supplies and Services,"3,520.71",Apr-23
Slough Borough Council,2677,Eton House Residential Home,M27C,Adult Social Care Operations,Supplies and Services,"3,407.14",Apr-23
Slough Borough Council,2677,Eton House Residential Home,M28C,Adult Social Care Operations,Supplies and Services,"2,464.29",Apr-23
Slough Borough Council,2677,Eton House Residential Home,M29C,Adult Social Care Operations,Supplies and Services,"1,705.71",Apr-23
Slough Borough Council,806501,Excellent Healthcare Services Ltd,M44C,Adult Social Care Operations,Supplies and Services,"2,144.52",Apr-23
Slough Borough Council,806501,Excellent Healthcare Services Ltd,M44C,Adult Social Care Operations,Supplies and Services,765.90,Apr-23
Slough Borough Council,806501,Excellent Healthcare Services Ltd,M44C,Adult Social Care Operations,Supplies and Services,"2,280.68",Apr-23
Slough Borough Council,806501,Excellent Healthcare Services Ltd,M44C,Adult Social Care Operations,Supplies and Services,"1,906.24",Apr-23
Slough Borough Council,806501,Excellent Healthcare Services Ltd,M44C,Adult Social Care Operations,Supplies and Services,"1,072.26",Apr-23
Slough Borough Council,806501,Excellent Healthcare Services Ltd,M44C,Adult Social Care Operations,Supplies and Services,833.98,Apr-23
Slough Borough Council,806501,Excellent Healthcare Services Ltd,M44C,Adult Social Care Operations,Supplies and Services,"2,144.52",Apr-23
Slough Borough Council,806501,Excellent Healthcare Services Ltd,M44C,Adult Social Care Operations,Supplies and Services,748.88,Apr-23
Slough Borough Council,806501,Excellent Healthcare Services Ltd,M44C,Adult Social Care Operations,Supplies and Services,"2,127.50",Apr-23
Slough Borough Council,806501,Excellent Healthcare Services Ltd,M44C,Adult Social Care Operations,Supplies and Services,"1,055.24",Apr-23
Slough Borough Council,806501,Excellent Healthcare Services Ltd,M44C,Adult Social Care Operations,Supplies and Services,"1,072.26",Apr-23
Slough Borough Council,806501,Excellent Healthcare Services Ltd,M44D,Adult Social Care Operations,Supplies and Services,833.98,Apr-23
Slough Borough Council,806501,Excellent Healthcare Services Ltd,M44F,Adult Social Care Operations,Supplies and Services,"2,382.80",Apr-23
Slough Borough Council,806501,Excellent Healthcare Services Ltd,M44F,Adult Social Care Operations,Supplies and Services,948.86,Apr-23
Slough Borough Council,806501,Excellent Healthcare Services Ltd,M44F,Adult Social Care Operations,Supplies and Services,719.10,Apr-23
Slough Borough Council,806501,Excellent Healthcare Services Ltd,M45C,Adult Social Care Operations,Supplies and Services,565.92,Apr-23
Slough Borough Council,806501,Excellent Healthcare Services Ltd,M48C,Adult Social Care Operations,Supplies and Services,595.70,Apr-23
Slough Borough Council,808736,EXCLUSIVE HOUSING SOLUTION LIMITED,H205,Housing (People) Services,Supplies and Services,"15,330.00",Apr-23
Slough Borough Council,808079,Fairley House School,F462,Children & Families,Supplies and Services,"11,936.00",Apr-23
Slough Borough Council,805225,Falcon Surfacing Ltd,D880,Place Operations,Supplies and Services,"1,045.00",Apr-23
Slough Borough Council,641,Falon Nameplates Limited,D320,Place Operations,Supplies and Services,"1,131.34",Apr-23
Slough Borough Council,4031,Family Support Practise Limited,B277,Digital and Strategic IT,Supplies and Services,"1,800.00",Apr-23
Slough Borough Council,4031,Family Support Practise Limited,B277,Digital and Strategic IT,Supplies and Services,"1,459.50",Apr-23
Slough Borough Council,4031,Family Support Practise Limited,B277,Digital and Strategic IT,Supplies and Services,"1,459.50",Apr-23
Slough Borough Council,955,First Beeline Buses Ltd,D512,Place Strategy & Infrastructure,Supplies and Services,"5,171.92",Apr-23
Slough Borough Council,955,First Beeline Buses Ltd,D512,Place Strategy & Infrastructure,Supplies and Services,"4,555.16",Apr-23
Slough Borough Council,955,First Beeline Buses Ltd,D512,Place Strategy & Infrastructure,Supplies and Services,"5,646.72",Apr-23
Slough Borough Council,754,First Steps Day Nursery,F909,Children & Families,Supplies and Services,"10,676.74",Apr-23
Slough Borough Council,1626,Five Star Radio Cars Limited,F123,Education & Inclusion,Supplies and Services,"3,780.00",Apr-23
Slough Borough Council,1626,Five Star Radio Cars Limited,F123,Education & Inclusion,Supplies and Services,"1,840.00",Apr-23
Slough Borough Council,2519,Fleet Tutors,F449,Education & Inclusion,Supplies and Services,"4,454.00",Apr-23
Slough Borough Council,806249,Formact Ltd,P006,Capital,Capital Charges,"3,103.30",Apr-23
Slough Borough Council,647,Foxborough Primary School,E620,Children & Families,Supplies and Services,"10,338.33",Apr-23
Slough Borough Council,806480,Frontier NX Limited,A04C,Adult Social Care Operations,Supplies and Services,"2,709.00",Apr-23
Slough Borough Council,806480,Frontier NX Limited,A04C,Adult Social Care Operations,Supplies and Services,776.37,Apr-23
Slough Borough Council,807125,Futures For Shared Lives,M36E,Adult Social Care Operations,Supplies and Services,"3,436.35",Apr-23
Slough Borough Council,804911,GAP Group Limited,D880,Place Operations,Supplies and Services,631.56,Apr-23
Slough Borough Council,804911,GAP Group Limited,D880,Place Operations,Supplies and Services,"1,012.00",Apr-23
Slough Borough Council,1758,Gas Advisory Services Limited,J606,Place Management,Supplies and Services,840.00,Apr-23
Slough Borough Council,1758,Gas Advisory Services Limited,J606,Place Management,Supplies and Services,"5,831.00",Apr-23
Slough Borough Council,1758,Gas Advisory Services Limited,J606,Place Management,Supplies and Services,"3,068.00",Apr-23
Slough Borough Council,1758,Gas Advisory Services Limited,J606,Place Management,Supplies and Services,840.00,Apr-23
Slough Borough Council,803189,Getty Images International,K059,Business Services,Supplies and Services,"1,428.00",Apr-23
Slough Borough Council,806300,Glasscubes Limited,B211,Community,Supplies and Services,714.00,Apr-23
Slough Borough Council,807626,Global Radio Services Ltd,B283,Finance & Commercial,Supplies and Services,"1,570.00",Apr-23
Slough Borough Council,2830,GR Response Healthcare Ltd,M44C,Adult Social Care Operations,Supplies and Services,"1,500.24",Apr-23
Slough Borough Council,2830,GR Response Healthcare Ltd,M44C,Adult Social Care Operations,Supplies and Services,"2,128.00",Apr-23
Slough Borough Council,2830,GR Response Healthcare Ltd,M44C,Adult Social Care Operations,Supplies and Services,"2,250.08",Apr-23
Slough Borough Council,2830,GR Response Healthcare Ltd,M44C,Adult Social Care Operations,Supplies and Services,"1,444.00",Apr-23
Slough Borough Council,2830,GR Response Healthcare Ltd,M44C,Adult Social Care Operations,Supplies and Services,"1,729.00",Apr-23
Slough Borough Council,2830,GR Response Healthcare Ltd,M44C,Adult Social Care Operations,Supplies and Services,"2,394.00",Apr-23
Slough Borough Council,2830,GR Response Healthcare Ltd,M44C,Adult Social Care Operations,Supplies and Services,"2,394.00",Apr-23
Slough Borough Council,2830,GR Response Healthcare Ltd,M44C,Adult Social Care Operations,Supplies and Services,"2,250.08",Apr-23
Slough Borough Council,2830,GR Response Healthcare Ltd,M44C,Adult Social Care Operations,Supplies and Services,"2,002.32",Apr-23
Slough Borough Council,2830,GR Response Healthcare Ltd,M44C,Adult Social Care Operations,Supplies and Services,"2,527.00",Apr-23
Slough Borough Council,2830,GR Response Healthcare Ltd,M44C,Adult Social Care Operations,Supplies and Services,"2,394.00",Apr-23
Slough Borough Council,2830,GR Response Healthcare Ltd,M44C,Adult Social Care Operations,Supplies and Services,"2,128.00",Apr-23
Slough Borough Council,2830,GR Response Healthcare Ltd,M44C,Adult Social Care Operations,Supplies and Services,"1,330.00",Apr-23
Slough Borough Council,2830,GR Response Healthcare Ltd,M44C,Adult Social Care Operations,Supplies and Services,"2,128.00",Apr-23
Slough Borough Council,2830,GR Response Healthcare Ltd,M44D,Adult Social Care Operations,Supplies and Services,"2,250.08",Apr-23
Slough Borough Council,2830,GR Response Healthcare Ltd,M44D,Adult Social Care Operations,Supplies and Services,"2,736.00",Apr-23
Slough Borough Council,2830,GR Response Healthcare Ltd,M44D,Adult Social Care Operations,Supplies and Services,"1,596.00",Apr-23
Slough Borough Council,2830,GR Response Healthcare Ltd,M44D,Adult Social Care Operations,Supplies and Services,931.00,Apr-23
Slough Borough Council,2830,GR Response Healthcare Ltd,M44D,Adult Social Care Operations,Supplies and Services,"1,946.18",Apr-23
Slough Borough Council,2830,GR Response Healthcare Ltd,M44D,Adult Social Care Operations,Supplies and Services,"2,432.00",Apr-23
Slough Borough Council,2830,GR Response Healthcare Ltd,M44D,Adult Social Care Operations,Supplies and Services,"2,187.64",Apr-23
Slough Borough Council,2830,GR Response Healthcare Ltd,M44E,Adult Social Care Operations,Supplies and Services,532.00,Apr-23
Slough Borough Council,2830,GR Response Healthcare Ltd,M44F,Adult Social Care Operations,Supplies and Services,"2,128.00",Apr-23
Slough Borough Council,2830,GR Response Healthcare Ltd,M45C,Adult Social Care Operations,Supplies and Services,"1,500.24",Apr-23
Slough Borough Council,2830,GR Response Healthcare Ltd,M45C,Adult Social Care Operations,Supplies and Services,"2,250.08",Apr-23
Slough Borough Council,2830,GR Response Healthcare Ltd,M45C,Adult Social Care Operations,Supplies and Services,950.00,Apr-23
Slough Borough Council,2830,GR Response Healthcare Ltd,M45C,Adult Social Care Operations,Supplies and Services,"2,116.18",Apr-23
Slough Borough Council,2830,GR Response Healthcare Ltd,M45C,Adult Social Care Operations,Supplies and Services,"1,843.00",Apr-23
Slough Borough Council,2830,GR Response Healthcare Ltd,M45C,Adult Social Care Operations,Supplies and Services,"2,527.00",Apr-23
Slough Borough Council,2830,GR Response Healthcare Ltd,A06C,People Strategy & Commissioning,Supplies and Services,"8,300.00",Apr-23
Slough Borough Council,1571,Grc Bailiffs,J016,Place Management,Supplies and Services,"3,350.00",Apr-23
Slough Borough Council,807255,Green Corridor,F558,Children & Families,Supplies and Services,"2,348.04",Apr-23
Slough Borough Council,804577,Green Monarch ZC2016 c/o Savills(UK) Limited,H205,Housing (People) Services,Premises,"3,583.33",Apr-23
Slough Borough Council,808378,Greensleeves Care,M17C,Adult Social Care Operations,Supplies and Services,"3,497.49",Apr-23
Slough Borough Council,808464,Greenstone Care,M51C,Adult Social Care Operations,Supplies and Services,"2,657.14",Apr-23
Slough Borough Council,808464,Greenstone Care,M51C,Adult Social Care Operations,Supplies and Services,"1,457.14",Apr-23
Slough Borough Council,808464,Greenstone Care,M51C,Adult Social Care Operations,Supplies and Services,"1,285.72",Apr-23
Slough Borough Council,808464,Greenstone Care,M51C,Adult Social Care Operations,Supplies and Services,"2,400.00",Apr-23
Slough Borough Council,808464,Greenstone Care,M51C,Adult Social Care Operations,Supplies and Services,"1,200.00",Apr-23
Slough Borough Council,808464,Greenstone Care,M51C,Adult Social Care Operations,Supplies and Services,"1,200.00",Apr-23
Slough Borough Council,808464,Greenstone Care,M51C,Adult Social Care Operations,Supplies and Services,"2,314.29",Apr-23
Slough Borough Council,808464,Greenstone Care,M51C,Adult Social Care Operations,Supplies and Services,685.71,Apr-23
Slough Borough Council,805069,Grove Academy,E610,Children & Families,Supplies and Services,"18,206.00",Apr-23
Slough Borough Council,804447,Grundon Waste Management Limited,C001,Place Operations,Premises,"1,459.00",Apr-23
Slough Borough Council,804447,Grundon Waste Management Limited,C001,Place Operations,Premises,"1,334.00",Apr-23
Slough Borough Council,804447,Grundon Waste Management Limited,D342,Place Operations,Supplies and Services,"508,123.03",Apr-23
Slough Borough Council,804986,Havencare Ltd,M26E,Adult Social Care Operations,Supplies and Services,"1,356.27",Apr-23
Slough Borough Council,804986,Havencare Ltd,M26E,Adult Social Care Operations,Supplies and Services,"1,356.27",Apr-23
Slough Borough Council,804986,Havencare Ltd,M26E,Adult Social Care Operations,Supplies and Services,"1,356.27",Apr-23
Slough Borough Council,804986,Havencare Ltd,M26E,Adult Social Care Operations,Supplies and Services,"1,356.27",Apr-23
Slough Borough Council,1381,Haybrook College,E610,Children & Families,Supplies and Services,"107,431.21",Apr-23
Slough Borough Council,3784,Haybrook College Pru,E610,Children & Families,Supplies and Services,"42,015.56",Apr-23
Slough Borough Council,803248,Haybrook College Trust,B297,Finance & Commercial,Government Grants,"2,640.00",Apr-23
Slough Borough Council,808639,Hazel Care Services Ltd,M42E,Adult Social Care Operations,Supplies and Services,"4,259.71",Apr-23
Slough Borough Council,808639,Hazel Care Services Ltd,M42E,Adult Social Care Operations,Supplies and Services,"4,679.45",Apr-23
Slough Borough Council,808639,Hazel Care Services Ltd,M42E,Adult Social Care Operations,Supplies and Services,"2,234.17",Apr-23
Slough Borough Council,803753,Healthcare Homes,M15D,Adult Social Care Operations,Supplies and Services,"2,843.66",Apr-23
Slough Borough Council,803753,Healthcare Homes,M17C,Adult Social Care Operations,Supplies and Services,"2,544.86",Apr-23
Slough Borough Council,803753,Healthcare Homes,M17C,Adult Social Care Operations,Supplies and Services,"4,285.71",Apr-23
Slough Borough Council,803753,Healthcare Homes,M17C,Adult Social Care Operations,Supplies and Services,"4,714.29",Apr-23
Slough Borough Council,803753,Healthcare Homes,M17C,Adult Social Care Operations,Supplies and Services,"4,714.29",Apr-23
Slough Borough Council,803753,Healthcare Homes,M18C,Adult Social Care Operations,Supplies and Services,"4,714.29",Apr-23
Slough Borough Council,803753,Healthcare Homes,M18C,Adult Social Care Operations,Supplies and Services,"4,714.29",Apr-23
Slough Borough Council,803753,Healthcare Homes,M18C,Adult Social Care Operations,Supplies and Services,"4,714.29",Apr-23
Slough Borough Council,803753,Healthcare Homes,M18C,Adult Social Care Operations,Supplies and Services,"4,714.29",Apr-23
Slough Borough Council,803753,Healthcare Homes,M27C,Adult Social Care Operations,Supplies and Services,"3,120.00",Apr-23
Slough Borough Council,805368,Heathermount School,F462,Children & Families,Supplies and Services,"17,445.79",Apr-23
Slough Borough Council,805368,Heathermount School,F462,Children & Families,Supplies and Services,"17,445.79",Apr-23
Slough Borough Council,805368,Heathermount School,F462,Children & Families,Supplies and Services,"17,445.79",Apr-23
Slough Borough Council,807682,Help and Care,A02C,Adult Social Care Commissioning,Supplies and Services,"16,109.74",Apr-23
Slough Borough Council,807682,Help and Care,A02C,Adult Social Care Commissioning,Supplies and Services,"16,109.74",Apr-23
Slough Borough Council,807682,Help and Care,A02C,Adult Social Care Commissioning,Supplies and Services,"16,109.74",Apr-23
Slough Borough Council,803447,Herewards House Residential Home,M25C,Adult Social Care Operations,Supplies and Services,"3,642.86",Apr-23
Slough Borough Council,803447,Herewards House Residential Home,M27C,Adult Social Care Operations,Supplies and Services,"3,642.86",Apr-23
Slough Borough Council,803447,Herewards House Residential Home,M27C,Adult Social Care Operations,Supplies and Services,"3,642.86",Apr-23
Slough Borough Council,803447,Herewards House Residential Home,M27C,Adult Social Care Operations,Supplies and Services,"2,785.71",Apr-23
Slough Borough Council,3387,Herschel Grammar School,B297,Finance & Commercial,Government Grants,"2,220.00",Apr-23
Slough Borough Council,805818,Hestia Housing & Support,H254,Place Regulation,Supplies and Services,500.00,Apr-23
Slough Borough Council,807998,Heywood's Catering,F382,Children & Families,Supplies and Services,"6,566.00",Apr-23
Slough Borough Council,659,Hilton Cabinet Co Ltd,D320,Place Operations,Supplies and Services,605.05,Apr-23
Slough Borough Council,850,Holy Family Catholic Primary School,E250,Children & Families,Supplies and Services,"191,770.42",Apr-23
Slough Borough Council,2983,Idox Software Ltd,F388,Children & Families,Government Grants,"15,000.00",Apr-23
Slough Borough Council,2983,Idox Software Ltd,F388,Children & Families,Government Grants,"24,545.00",Apr-23
Slough Borough Council,808897,Imperial Breeze Healthcare South East Ltd,M42E,Adult Social Care Operations,Supplies and Services,687.00,Apr-23
Slough Borough Council,808897,Imperial Breeze Healthcare South East Ltd,M42E,Adult Social Care Operations,Supplies and Services,"5,028.57",Apr-23
Slough Borough Council,808897,Imperial Breeze Healthcare South East Ltd,M42E,Adult Social Care Operations,Supplies and Services,"2,971.43",Apr-23
Slough Borough Council,808897,Imperial Breeze Healthcare South East Ltd,M42E,Adult Social Care Operations,Supplies and Services,"4,614.00",Apr-23
Slough Borough Council,808897,Imperial Breeze Healthcare South East Ltd,M42E,Adult Social Care Operations,Supplies and Services,"2,307.00",Apr-23
Slough Borough Council,2917,Imperial Coaches Ltd,F123,Education & Inclusion,Supplies and Services,"5,170.00",Apr-23
Slough Borough Council,351,Imperial Polythene Products Ltd,D620,Place Operations,Supplies and Services,"2,313.00",Apr-23
Slough Borough Council,807666,Independence Home and Domicilary Care,M44F,Adult Social Care Operations,Supplies and Services,"3,053.96",Apr-23
Slough Borough Council,807666,Independence Home and Domicilary Care,M44F,Adult Social Care Operations,Supplies and Services,"2,656.08",Apr-23
Slough Borough Council,807666,Independence Home and Domicilary Care,M44F,Adult Social Care Operations,Supplies and Services,"3,024.00",Apr-23
Slough Borough Council,807666,Independence Home and Domicilary Care,M44F,Adult Social Care Operations,Supplies and Services,"1,395.10",Apr-23
Slough Borough Council,807666,Independence Home and Domicilary Care,M44F,Adult Social Care Operations,Supplies and Services,"3,381.17",Apr-23
Slough Borough Council,807666,Independence Home and Domicilary Care,M44F,Adult Social Care Operations,Supplies and Services,"2,940.66",Apr-23
Slough Borough Council,807666,Independence Home and Domicilary Care,M44F,Adult Social Care Operations,Supplies and Services,"3,348.00",Apr-23
Slough Borough Council,807666,Independence Home and Domicilary Care,M44F,Adult Social Care Operations,Supplies and Services,"1,544.58",Apr-23
Slough Borough Council,3570,Independent Supported Living And Disabilities Ltd,M81D,Adult Social Care Operations,Supplies and Services,"4,172.00",Apr-23
Slough Borough Council,808214,Infocus Charity,M26E,Adult Social Care Operations,Supplies and Services,"2,714.83",Apr-23
Slough Borough Council,808214,Infocus Charity,M26E,Adult Social Care Operations,Supplies and Services,"2,805.33",Apr-23
Slough Borough Council,808214,Infocus Charity,M26E,Adult Social Care Operations,Supplies and Services,"2,805.33",Apr-23
Slough Borough Council,808214,Infocus Charity,M26E,Adult Social Care Operations,Supplies and Services,"2,773.34",Apr-23
Slough Borough Council,808214,Infocus Charity,F462,Children & Families,Supplies and Services,"18,421.72",Apr-23
Slough Borough Council,807231,Initial Projects Limited,D308,Place Operations,Supplies and Services,"-2,280.67",Apr-23
Slough Borough Council,807231,Initial Projects Limited,D308,Place Operations,Supplies and Services,"2,280.67",Apr-23
Slough Borough Council,803651,Insight Direct (UK) Ltd,B282,Digital and Strategic IT,Supplies and Services,"8,844.00",Apr-23
Slough Borough Council,803651,Insight Direct (UK) Ltd,B282,Digital and Strategic IT,Supplies and Services,"13,360.16",Apr-23
Slough Borough Council,803651,Insight Direct (UK) Ltd,B282,Digital and Strategic IT,Supplies and Services,"15,182.00",Apr-23
Slough Borough Council,803651,Insight Direct (UK) Ltd,B342,Digital and Strategic IT,Supplies and Services,"2,250.00",Apr-23
Slough Borough Council,803651,Insight Direct (UK) Ltd,B342,Digital and Strategic IT,Supplies and Services,"3,375.00",Apr-23
Slough Borough Council,803651,Insight Direct (UK) Ltd,B342,Digital and Strategic IT,Capital Charges,"8,844.00",Apr-23
Slough Borough Council,3172,Intelligent Transport Services,P212,Capital,Capital Charges,"1,958.00",Apr-23
Slough Borough Council,3172,Intelligent Transport Services,P212,Capital,Capital Charges,"2,848.00",Apr-23
Slough Borough Council,3172,Intelligent Transport Services,P212,Capital,Capital Charges,"2,136.00",Apr-23
Slough Borough Council,3172,Intelligent Transport Services,P235,Capital,Capital Charges,712.00,Apr-23
Slough Borough Council,3172,Intelligent Transport Services,P235,Capital,Capital Charges,"1,068.00",Apr-23
Slough Borough Council,3500,Iqra Slough Islamic Primary School,E480,Children & Families,Supplies and Services,"102,614.88",Apr-23
Slough Borough Council,998,Iron Mountain Uk Ltd,B282,Digital and Strategic IT,Supplies and Services,"3,266.86",Apr-23
Slough Borough Council,2919,Islamic Shakhsiyah Foundation,F909,Children & Families,Supplies and Services,"7,394.68",Apr-23
Slough Borough Council,808305,Ivanti UK,B282,Digital and Strategic IT,Supplies and Services,"19,037.79",Apr-23
Slough Borough Council,806270,J2 RESEARCH LTD,F210,Community,TP-Other Bodies,"2,190.75",Apr-23
Slough Borough Council,753,Jack In The Box Day Nursery,F909,Children & Families,Supplies and Services,"10,990.64",Apr-23
Slough Borough Council,733,James Elliman  School,E620,Children & Families,Supplies and Services,"28,658.33",Apr-23
Slough Borough Council,1970,James Elliman Academy,B297,Finance & Commercial,Government Grants,"3,930.00",Apr-23
Slough Borough Council,805666,James Rosental,C322,Community,Supplies and Services,"1,092.00",Apr-23
Slough Borough Council,805226,JD Surfacing & Civil Engineering Limited,D880,Place Operations,Supplies and Services,"11,250.00",Apr-23
Slough Borough Council,805226,JD Surfacing & Civil Engineering Limited,D880,Place Operations,Supplies and Services,"1,960.00",Apr-23
Slough Borough Council,805226,JD Surfacing & Civil Engineering Limited,P212,Capital,Capital Charges,"12,850.00",Apr-23
Slough Borough Council,805226,JD Surfacing & Civil Engineering Limited,P212,Capital,Capital Charges,"3,160.00",Apr-23
Slough Borough Council,807453,John F Hunt Regeneration Ltd,P405,Capital,Capital Charges,"11,740.87",Apr-23
Slough Borough Council,2200,Joshua Pilmore,C322,Community,Supplies and Services,"1,452.00",Apr-23
Slough Borough Council,2200,Joshua Pilmore,C322,Community,Supplies and Services,550.00,Apr-23
Slough Borough Council,1972,Js Chemist,A04C,Adult Social Care Operations,Supplies and Services,545.11,Apr-23
Slough Borough Council,201,Kamal Enterprises Ltd,A04C,Adult Social Care Operations,Supplies and Services,830.00,Apr-23
Slough Borough Council,803815,Kathys Childcare,F909,Children & Families,Supplies and Services,"2,240.72",Apr-23
Slough Borough Council,2620,Kcare Nursing Agency Ltd,M44C,Adult Social Care Operations,Supplies and Services,933.00,Apr-23
Slough Borough Council,2620,Kcare Nursing Agency Ltd,M44C,Adult Social Care Operations,Supplies and Services,924.46,Apr-23
Slough Borough Council,2620,Kcare Nursing Agency Ltd,M44C,Adult Social Care Operations,Supplies and Services,874.28,Apr-23
Slough Borough Council,2620,Kcare Nursing Agency Ltd,M44D,Adult Social Care Operations,Supplies and Services,"1,674.91",Apr-23
Slough Borough Council,2620,Kcare Nursing Agency Ltd,M44D,Adult Social Care Operations,Supplies and Services,"1,689.21",Apr-23
Slough Borough Council,2620,Kcare Nursing Agency Ltd,M44D,Adult Social Care Operations,Supplies and Services,"1,090.56",Apr-23
Slough Borough Council,2620,Kcare Nursing Agency Ltd,M44D,Adult Social Care Operations,Supplies and Services,"1,688.79",Apr-23
Slough Borough Council,2620,Kcare Nursing Agency Ltd,M44D,Adult Social Care Operations,Supplies and Services,"1,073.91",Apr-23
Slough Borough Council,2620,Kcare Nursing Agency Ltd,M44D,Adult Social Care Operations,Supplies and Services,"1,297.01",Apr-23
Slough Borough Council,2620,Kcare Nursing Agency Ltd,M48C,Adult Social Care Operations,Supplies and Services,"4,000.00",Apr-23
Slough Borough Council,2620,Kcare Nursing Agency Ltd,M48C,Adult Social Care Operations,Supplies and Services,784.61,Apr-23
Slough Borough Council,804887,KCare Nursing Agency Ltd Supported House Living,M42F,Adult Social Care Operations,Supplies and Services,"2,926.00",Apr-23
Slough Borough Council,804887,KCare Nursing Agency Ltd Supported House Living,M44F,Adult Social Care Operations,Supplies and Services,"2,493.50",Apr-23
Slough Borough Council,807742,Khalsa Primary School,E620,Children & Families,Supplies and Services,"13,915.00",Apr-23
Slough Borough Council,803916,Kharis Solutions,M42E,Adult Social Care Operations,Supplies and Services,"7,188.00",Apr-23
Slough Borough Council,803916,Kharis Solutions,M44E,Adult Social Care Operations,Supplies and Services,"1,200.00",Apr-23
Slough Borough Council,803916,Kharis Solutions,M44E,Adult Social Care Operations,Supplies and Services,900.00,Apr-23
Slough Borough Council,803916,Kharis Solutions,M44E,Adult Social Care Operations,Supplies and Services,"1,200.00",Apr-23
Slough Borough Council,803916,Kharis Solutions,M44E,Adult Social Care Operations,Supplies and Services,600.00,Apr-23
Slough Borough Council,803916,Kharis Solutions,M44E,Adult Social Care Operations,Supplies and Services,"3,900.00",Apr-23
Slough Borough Council,803916,Kharis Solutions,M44E,Adult Social Care Operations,Supplies and Services,"1,028.57",Apr-23
Slough Borough Council,803916,Kharis Solutions,M44E,Adult Social Care Operations,Supplies and Services,"1,500.00",Apr-23
Slough Borough Council,803916,Kharis Solutions,M44E,Adult Social Care Operations,Supplies and Services,"2,700.00",Apr-23
Slough Borough Council,1728,Kristiina Smith,C322,Community,Supplies and Services,"2,652.00",Apr-23
Slough Borough Council,808599,lakhwinder Singh,H205,Housing (People) Services,Supplies and Services,"1,400.00",Apr-23
Slough Borough Council,808599,lakhwinder Singh,H205,Housing (People) Services,Supplies and Services,"1,550.00",Apr-23
Slough Borough Council,808599,lakhwinder Singh,H205,Housing (People) Services,Supplies and Services,"1,550.00",Apr-23
Slough Borough Council,664,Langley Grammar School,E610,Children & Families,Supplies and Services,875.00,Apr-23
Slough Borough Council,664,Langley Grammar School,B297,Finance & Commercial,Government Grants,"1,830.00",Apr-23
Slough Borough Council,3001,Langley Haven Care Homes Ltd,M25C,Adult Social Care Operations,Supplies and Services,"3,857.14",Apr-23
Slough Borough Council,3001,Langley Haven Care Homes Ltd,M25C,Adult Social Care Operations,Supplies and Services,"4,264.84",Apr-23
Slough Borough Council,3001,Langley Haven Care Homes Ltd,M25C,Adult Social Care Operations,Supplies and Services,"3,857.14",Apr-23
Slough Borough Council,3001,Langley Haven Care Homes Ltd,M25C,Adult Social Care Operations,Supplies and Services,"3,857.14",Apr-23
Slough Borough Council,3001,Langley Haven Care Homes Ltd,M25C,Adult Social Care Operations,Supplies and Services,"4,883.76",Apr-23
Slough Borough Council,3001,Langley Haven Care Homes Ltd,M25D,Adult Social Care Operations,Supplies and Services,"3,857.14",Apr-23
Slough Borough Council,3001,Langley Haven Care Homes Ltd,M25D,Adult Social Care Operations,Supplies and Services,"3,857.14",Apr-23
Slough Borough Council,3001,Langley Haven Care Homes Ltd,M26E,Adult Social Care Operations,Supplies and Services,"3,980.53",Apr-23
Slough Borough Council,3001,Langley Haven Care Homes Ltd,M26E,Adult Social Care Operations,Supplies and Services,"3,980.53",Apr-23
Slough Borough Council,3001,Langley Haven Care Homes Ltd,M27C,Adult Social Care Operations,Supplies and Services,"3,857.14",Apr-23
Slough Borough Council,3001,Langley Haven Care Homes Ltd,M27C,Adult Social Care Operations,Supplies and Services,"3,857.14",Apr-23
Slough Borough Council,3001,Langley Haven Care Homes Ltd,M27C,Adult Social Care Operations,Supplies and Services,"3,857.14",Apr-23
Slough Borough Council,3001,Langley Haven Care Homes Ltd,M27F,Adult Social Care Operations,Supplies and Services,"4,264.84",Apr-23
Slough Borough Council,3001,Langley Haven Care Homes Ltd,M27F,Adult Social Care Operations,Supplies and Services,"2,013.94",Apr-23
Slough Borough Council,3001,Langley Haven Care Homes Ltd,M27F,Adult Social Care Operations,Supplies and Services,"3,857.14",Apr-23
Slough Borough Council,3001,Langley Haven Care Homes Ltd,M27F,Adult Social Care Operations,Supplies and Services,"3,857.14",Apr-23
Slough Borough Council,3001,Langley Haven Care Homes Ltd,M27F,Adult Social Care Operations,Supplies and Services,"3,857.14",Apr-23
Slough Borough Council,3001,Langley Haven Care Homes Ltd,M27F,Adult Social Care Operations,Supplies and Services,"3,857.14",Apr-23
Slough Borough Council,3001,Langley Haven Care Homes Ltd,M28C,Adult Social Care Operations,Supplies and Services,"3,857.14",Apr-23
Slough Borough Council,3001,Langley Haven Care Homes Ltd,M29C,Adult Social Care Operations,Supplies and Services,"3,857.14",Apr-23
Slough Borough Council,3001,Langley Haven Care Homes Ltd,M29C,Adult Social Care Operations,Supplies and Services,"3,604.68",Apr-23
Slough Borough Council,3001,Langley Haven Care Homes Ltd,M29C,Adult Social Care Operations,Supplies and Services,771.43,Apr-23
Slough Borough Council,803686,Lascelles Park Nursery,F909,Children & Families,Supplies and Services,"17,000.00",Apr-23
Slough Borough Council,3482,Leonard Cheshire Disability,M26E,Adult Social Care Operations,Supplies and Services,"6,579.93",Apr-23
Slough Borough Council,808423,Leo's Circus CIC,F382,Children & Families,Supplies and Services,"1,117.51",Apr-23
Slough Borough Council,301,Liberata Uk Limited,B048,Finance & Commercial,Supplies and Services,"10,485.73",Apr-23
Slough Borough Council,804692,Little Diamonds Pre School,F909,Children & Families,Supplies and Services,"17,000.00",Apr-23
Slough Borough Council,3791,Littledown Pru,E610,Children & Families,Supplies and Services,"17,100.00",Apr-23
Slough Borough Council,667,Littledown School,E610,Children & Families,Supplies and Services,"37,796.64",Apr-23
Slough Borough Council,1328,London & Quadrant Housing Trust,H205,Housing (People) Services,Premises,"57,554.16",Apr-23
Slough Borough Council,803626,London Borough of Havering,F123,Education & Inclusion,Supplies and Services,"4,720.00",Apr-23
Slough Borough Council,1282,Long Close School,F909,Children & Families,Supplies and Services,"7,247.98",Apr-23
Slough Borough Council,2302,Look Ahead Care And Support,M42F,Adult Social Care Operations,Supplies and Services,"22,896.37",Apr-23
Slough Borough Council,2302,Look Ahead Care And Support,M44D,Adult Social Care Operations,Supplies and Services,"3,131.62",Apr-23
Slough Borough Council,2302,Look Ahead Care And Support,M44F,Adult Social Care Operations,Supplies and Services,"3,131.62",Apr-23
Slough Borough Council,2302,Look Ahead Care And Support,M44F,Adult Social Care Operations,Supplies and Services,"1,565.81",Apr-23
Slough Borough Council,2302,Look Ahead Care And Support,H211,People Adults,Supplies and Services,"13,982.80",Apr-23
Slough Borough Council,2302,Look Ahead Care And Support,H211,People Adults,Supplies and Services,816.68,Apr-23
Slough Borough Council,2302,Look Ahead Care And Support,H211,People Adults,Supplies and Services,556.19,Apr-23
Slough Borough Council,808567,Lydia Simpson,C322,Community,Supplies and Services,650.00,Apr-23
Slough Borough Council,808567,Lydia Simpson,C322,Community,Supplies and Services,"1,005.00",Apr-23
Slough Borough Council,1195,Lynch Hill (Foundation Primary) School,E620,Children & Families,Supplies and Services,"25,231.67",Apr-23
Slough Borough Council,1771,Lynch Hill Academy,E620,Children & Families,Supplies and Services,"13,625.00",Apr-23
Slough Borough Council,3424,M D Homes,M15F,Adult Social Care Operations,Supplies and Services,"4,950.00",Apr-23
Slough Borough Council,807217,Macadamia Support Limited,M42E,Adult Social Care Operations,Supplies and Services,"4,829.13",Apr-23
Slough Borough Council,1395,Manage4U Chartered Surveyors,J150,Place Management,Supplies and Services,770.00,Apr-23
Slough Borough Council,1395,Manage4U Chartered Surveyors,J150,Place Management,Supplies and Services,560.00,Apr-23
Slough Borough Council,3768,Marish Academy Trust,F200,Education & Inclusion,Supplies and Services,"2,500.00",Apr-23
Slough Borough Council,529,Marish Primary School,E620,Children & Families,Supplies and Services,"94,510.00",Apr-23
Slough Borough Council,2752,Martin Conway,H205,Housing (People) Services,Supplies and Services,930.00,Apr-23
Slough Borough Council,2752,Martin Conway,H205,Housing (People) Services,Supplies and Services,980.00,Apr-23
Slough Borough Council,2752,Martin Conway,H205,Housing (People) Services,Supplies and Services,560.00,Apr-23
Slough Borough Council,2752,Martin Conway,H205,Housing (People) Services,Supplies and Services,560.00,Apr-23
Slough Borough Council,2752,Martin Conway,H205,Housing (People) Services,Supplies and Services,560.00,Apr-23
Slough Borough Council,2752,Martin Conway,H205,Housing (People) Services,Supplies and Services,560.00,Apr-23
Slough Borough Council,1886,Matrix Scm,B023,Finance & Commercial,Agency Staff,"512,035.56",Apr-23
Slough Borough Council,1886,Matrix Scm,B023,Finance & Commercial,Agency Staff,"490,526.49",Apr-23
Slough Borough Council,1886,Matrix Scm,B023,Finance & Commercial,Agency Staff,"381,450.85",Apr-23
Slough Borough Council,1886,Matrix Scm,B023,Finance & Commercial,Agency Staff,"522,294.42",Apr-23
Slough Borough Council,1886,Matrix Scm,B023,Finance & Commercial,Agency Staff,"464,677.35",Apr-23
Slough Borough Council,807684,Maverick Care  Ltd T/A Christies Care Windsor & Maidenhead,M44C,Adult Social Care Operations,Supplies and Services,"1,309.00",Apr-23
Slough Borough Council,807684,Maverick Care  Ltd T/A Christies Care Windsor & Maidenhead,M45C,Adult Social Care Operations,Supplies and Services,611.00,Apr-23
Slough Borough Council,807684,Maverick Care  Ltd T/A Christies Care Windsor & Maidenhead,M45C,Adult Social Care Operations,Supplies and Services,"1,185.75",Apr-23
Slough Borough Council,1496,Mighty Acorns Day Nursery Ltd,F909,Children & Families,Supplies and Services,"13,642.99",Apr-23
Slough Borough Council,808716,Mini Todds Ltd,F909,Children & Families,Supplies and Services,"2,691.30",Apr-23
Slough Borough Council,808747,MK HOUSING LTD,H205,Housing (People) Services,Supplies and Services,"5,820.00",Apr-23
Slough Borough Council,805121,MMCG (2) Limited,A03E,Adult Social Care Operations,Supplies and Services,"3,150.00",Apr-23
Slough Borough Council,805121,MMCG (2) Limited,A03E,Adult Social Care Operations,Supplies and Services,"4,562.80",Apr-23
Slough Borough Council,805121,MMCG (2) Limited,M15D,Adult Social Care Operations,Supplies and Services,"3,699.54",Apr-23
Slough Borough Council,805121,MMCG (2) Limited,M15D,Adult Social Care Operations,Supplies and Services,"3,699.54",Apr-23
Slough Borough Council,805121,MMCG (2) Limited,M15F,Adult Social Care Operations,Supplies and Services,"3,699.54",Apr-23
Slough Borough Council,805121,MMCG (2) Limited,M15F,Adult Social Care Operations,Supplies and Services,"2,834.68",Apr-23
Slough Borough Council,805121,MMCG (2) Limited,M17C,Adult Social Care Operations,Supplies and Services,"3,699.54",Apr-23
Slough Borough Council,805121,MMCG (2) Limited,M17C,Adult Social Care Operations,Supplies and Services,"2,060.62",Apr-23
Slough Borough Council,805121,MMCG (2) Limited,M17C,Adult Social Care Operations,Supplies and Services,"3,699.54",Apr-23
Slough Borough Council,805121,MMCG (2) Limited,M17C,Adult Social Care Operations,Supplies and Services,"-3,150.00",Apr-23
Slough Borough Council,805121,MMCG (2) Limited,M17C,Adult Social Care Operations,Supplies and Services,"3,238.12",Apr-23
Slough Borough Council,805121,MMCG (2) Limited,M18C,Adult Social Care Operations,Supplies and Services,"4,192.79",Apr-23
Slough Borough Council,805121,MMCG (2) Limited,M18C,Adult Social Care Operations,Supplies and Services,"3,699.54",Apr-23
Slough Borough Council,805121,MMCG (2) Limited,M18C,Adult Social Care Operations,Supplies and Services,"3,699.54",Apr-23
Slough Borough Council,805121,MMCG (2) Limited,M18C,Adult Social Care Operations,Supplies and Services,"5,062.50",Apr-23
Slough Borough Council,805121,MMCG (2) Limited,M18C,Adult Social Care Operations,Supplies and Services,"3,699.54",Apr-23
Slough Borough Council,805121,MMCG (2) Limited,M18C,Adult Social Care Operations,Supplies and Services,"4,562.80",Apr-23
Slough Borough Council,805121,MMCG (2) Limited,M18C,Adult Social Care Operations,Supplies and Services,"4,562.80",Apr-23
Slough Borough Council,805121,MMCG (2) Limited,M25C,Adult Social Care Operations,Supplies and Services,"3,699.54",Apr-23
Slough Borough Council,805121,MMCG (2) Limited,M25C,Adult Social Care Operations,Supplies and Services,"3,699.54",Apr-23
Slough Borough Council,805121,MMCG (2) Limited,M25C,Adult Social Care Operations,Supplies and Services,"3,699.54",Apr-23
Slough Borough Council,805121,MMCG (2) Limited,M25C,Adult Social Care Operations,Supplies and Services,"3,699.54",Apr-23
Slough Borough Council,805121,MMCG (2) Limited,M25C,Adult Social Care Operations,Supplies and Services,"3,699.54",Apr-23
Slough Borough Council,805121,MMCG (2) Limited,M27C,Adult Social Care Operations,Supplies and Services,"3,699.54",Apr-23
Slough Borough Council,805121,MMCG (2) Limited,M27C,Adult Social Care Operations,Supplies and Services,"3,699.54",Apr-23
Slough Borough Council,805121,MMCG (2) Limited,M27C,Adult Social Care Operations,Supplies and Services,"3,699.54",Apr-23
Slough Borough Council,805121,MMCG (2) Limited,M27C,Adult Social Care Operations,Supplies and Services,"3,699.54",Apr-23
Slough Borough Council,805121,MMCG (2) Limited,M27C,Adult Social Care Operations,Supplies and Services,"3,699.54",Apr-23
Slough Borough Council,805121,MMCG (2) Limited,M27C,Adult Social Care Operations,Supplies and Services,"3,699.54",Apr-23
Slough Borough Council,2121,Mnk Estates (Uk) Ltd,M07E,People Adults,Supplies and Services,"2,100.00",Apr-23
Slough Borough Council,1786,Mobius Networks Ltd,D500,Place Strategy & Infrastructure,Premises,"20,139.80",Apr-23
Slough Borough Council,804815,Molly Southall,C322,Community,Supplies and Services,"1,495.00",Apr-23
Slough Borough Council,2166,Montague Swift Recruitment Ltd,F640,Children & Families,Agency Staff,"3,500.00",Apr-23
Slough Borough Council,1140,Montem Guesthouse,H205,Housing (People) Services,Supplies and Services,"63,168.00",Apr-23
Slough Borough Council,3302,Montem Primary School,E620,Children & Families,Supplies and Services,"32,830.00",Apr-23
Slough Borough Council,3372,More House School,F462,Children & Families,Supplies and Services,"6,912.00",Apr-23
Slough Borough Council,806484,Mrs Parwinder Kaur Bhandal,H205,Housing (People) Services,Supplies and Services,"5,002.00",Apr-23
Slough Borough Council,806484,Mrs Parwinder Kaur Bhandal,H205,Housing (People) Services,Supplies and Services,"3,162.00",Apr-23
Slough Borough Council,806484,Mrs Parwinder Kaur Bhandal,H205,Housing (People) Services,Supplies and Services,"8,215.00",Apr-23
Slough Borough Council,806858,MUDDY BOOTS DAY NURSERY LTD,F909,Children & Families,Supplies and Services,"8,954.03",Apr-23
Slough Borough Council,805369,NAS Services Limited,M42E,Adult Social Care Operations,Supplies and Services,"8,496.94",Apr-23
Slough Borough Council,1796,Ncer Cic,F200,Education & Inclusion,Supplies and Services,"7,787.82",Apr-23
Slough Borough Council,807590,NETWORK MERCHANTS LIMITED,D122,Place Strategy & Infrastructure,Supplies and Services,505.80,Apr-23
Slough Borough Council,1117,Newsquest Media Group Limited,F382,Children & Families,Supplies and Services,"1,000.00",Apr-23
Slough Borough Council,805330,Norden Farm Centre Trust Limited,B175,Business Services,External Receipts,787.50,Apr-23
Slough Borough Council,805330,Norden Farm Centre Trust Limited,B175,Business Services,External Receipts,684.00,Apr-23
Slough Borough Council,805330,Norden Farm Centre Trust Limited,B175,Business Services,External Receipts,648.00,Apr-23
Slough Borough Council,2021,Now Medical,H207,Community,Supplies and Services,800.00,Apr-23
Slough Borough Council,803238,Oasis Care and Training Agency,A07R,Adult Social Care Operations,Supplies and Services,644.64,Apr-23
Slough Borough Council,803238,Oasis Care and Training Agency,M44C,Adult Social Care Operations,Supplies and Services,"3,893.48",Apr-23
Slough Borough Council,803238,Oasis Care and Training Agency,M44C,Adult Social Care Operations,Supplies and Services,"3,893.48",Apr-23
Slough Borough Council,803238,Oasis Care and Training Agency,M44C,Adult Social Care Operations,Supplies and Services,"3,893.48",Apr-23
Slough Borough Council,803238,Oasis Care and Training Agency,M44C,Adult Social Care Operations,Supplies and Services,"3,893.48",Apr-23
Slough Borough Council,803238,Oasis Care and Training Agency,M44C,Adult Social Care Operations,Supplies and Services,"3,893.48",Apr-23
Slough Borough Council,803238,Oasis Care and Training Agency,M44C,Adult Social Care Operations,Supplies and Services,"3,893.48",Apr-23
Slough Borough Council,803238,Oasis Care and Training Agency,M44C,Adult Social Care Operations,Supplies and Services,"3,893.48",Apr-23
Slough Borough Council,803238,Oasis Care and Training Agency,M44C,Adult Social Care Operations,Supplies and Services,"3,893.48",Apr-23
Slough Borough Council,803238,Oasis Care and Training Agency,M44C,Adult Social Care Operations,Supplies and Services,962.64,Apr-23
Slough Borough Council,803238,Oasis Care and Training Agency,M44C,Adult Social Care Operations,Supplies and Services,601.64,Apr-23
Slough Borough Council,803238,Oasis Care and Training Agency,M44C,Adult Social Care Operations,Supplies and Services,722.00,Apr-23
Slough Borough Council,803238,Oasis Care and Training Agency,M44C,Adult Social Care Operations,Supplies and Services,"2,045.60",Apr-23
Slough Borough Council,803238,Oasis Care and Training Agency,M44C,Adult Social Care Operations,Supplies and Services,739.16,Apr-23
Slough Borough Council,803238,Oasis Care and Training Agency,M44C,Adult Social Care Operations,Supplies and Services,"2,165.96",Apr-23
Slough Borough Council,803238,Oasis Care and Training Agency,M44C,Adult Social Care Operations,Supplies and Services,"1,106.06",Apr-23
Slough Borough Council,803238,Oasis Care and Training Agency,M44C,Adult Social Care Operations,Supplies and Services,"1,151.72",Apr-23
Slough Borough Council,803238,Oasis Care and Training Agency,M44C,Adult Social Care Operations,Supplies and Services,"1,082.96",Apr-23
Slough Borough Council,803238,Oasis Care and Training Agency,M44C,Adult Social Care Operations,Supplies and Services,"2,681.64",Apr-23
Slough Borough Council,803238,Oasis Care and Training Agency,M44C,Adult Social Care Operations,Supplies and Services,"2,784.80",Apr-23
Slough Borough Council,803238,Oasis Care and Training Agency,M44C,Adult Social Care Operations,Supplies and Services,"1,564.28",Apr-23
Slough Borough Council,803238,Oasis Care and Training Agency,M44C,Adult Social Care Operations,Supplies and Services,"1,443.96",Apr-23
Slough Borough Council,803238,Oasis Care and Training Agency,M44C,Adult Social Care Operations,Supplies and Services,"1,564.28",Apr-23
Slough Borough Council,803238,Oasis Care and Training Agency,M44C,Adult Social Care Operations,Supplies and Services,"2,165.96",Apr-23
Slough Borough Council,803238,Oasis Care and Training Agency,M44C,Adult Social Care Operations,Supplies and Services,"1,082.96",Apr-23
Slough Borough Council,803238,Oasis Care and Training Agency,M44C,Adult Social Care Operations,Supplies and Services,"2,165.96",Apr-23
Slough Borough Council,803238,Oasis Care and Training Agency,M44C,Adult Social Care Operations,Supplies and Services,601.64,Apr-23
Slough Borough Council,803238,Oasis Care and Training Agency,M44C,Adult Social Care Operations,Supplies and Services,"1,151.72",Apr-23
Slough Borough Council,803238,Oasis Care and Training Agency,M44C,Adult Social Care Operations,Supplies and Services,"2,011.25",Apr-23
Slough Borough Council,803238,Oasis Care and Training Agency,M44C,Adult Social Care Operations,Supplies and Services,"3,733.48",Apr-23
Slough Borough Council,803238,Oasis Care and Training Agency,M44C,Adult Social Care Operations,Supplies and Services,"1,082.96",Apr-23
Slough Borough Council,803238,Oasis Care and Training Agency,M44C,Adult Social Care Operations,Supplies and Services,"1,340.84",Apr-23
Slough Borough Council,803238,Oasis Care and Training Agency,M44C,Adult Social Care Operations,Supplies and Services,"1,598.69",Apr-23
Slough Borough Council,803238,Oasis Care and Training Agency,M44C,Adult Social Care Operations,Supplies and Services,"1,100.16",Apr-23
Slough Borough Council,803238,Oasis Care and Training Agency,M44C,Adult Social Care Operations,Supplies and Services,"1,564.28",Apr-23
Slough Borough Council,803238,Oasis Care and Training Agency,M44C,Adult Social Care Operations,Supplies and Services,842.32,Apr-23
Slough Borough Council,803238,Oasis Care and Training Agency,M44C,Adult Social Care Operations,Supplies and Services,"2,681.64",Apr-23
Slough Borough Council,803238,Oasis Care and Training Agency,M44C,Adult Social Care Operations,Supplies and Services,"2,724.63",Apr-23
Slough Borough Council,803238,Oasis Care and Training Agency,M44C,Adult Social Care Operations,Supplies and Services,"1,306.44",Apr-23
Slough Borough Council,803238,Oasis Care and Training Agency,M44C,Adult Social Care Operations,Supplies and Services,"1,443.96",Apr-23
Slough Borough Council,803238,Oasis Care and Training Agency,M44D,Adult Social Care Operations,Supplies and Services,773.56,Apr-23
Slough Borough Council,803238,Oasis Care and Training Agency,M44D,Adult Social Care Operations,Supplies and Services,842.32,Apr-23
Slough Borough Council,803238,Oasis Care and Training Agency,M44D,Adult Social Care Operations,Supplies and Services,"1,340.84",Apr-23
Slough Borough Council,803238,Oasis Care and Training Agency,M44D,Adult Social Care Operations,Supplies and Services,"2,165.96",Apr-23
Slough Borough Council,803238,Oasis Care and Training Agency,M44D,Adult Social Care Operations,Supplies and Services,670.40,Apr-23
Slough Borough Council,803238,Oasis Care and Training Agency,M44D,Adult Social Care Operations,Supplies and Services,979.84,Apr-23
Slough Borough Council,803238,Oasis Care and Training Agency,M44D,Adult Social Care Operations,Supplies and Services,842.32,Apr-23
Slough Borough Council,803238,Oasis Care and Training Agency,M44D,Adult Social Care Operations,Supplies and Services,"1,340.84",Apr-23
Slough Borough Council,803238,Oasis Care and Training Agency,M44D,Adult Social Care Operations,Supplies and Services,"1,323.64",Apr-23
Slough Borough Council,803238,Oasis Care and Training Agency,M44D,Adult Social Care Operations,Supplies and Services,842.32,Apr-23
Slough Borough Council,803238,Oasis Care and Training Agency,M44D,Adult Social Care Operations,Supplies and Services,859.52,Apr-23
Slough Borough Council,803238,Oasis Care and Training Agency,M44D,Adult Social Care Operations,Supplies and Services,"2,165.96",Apr-23
Slough Borough Council,803238,Oasis Care and Training Agency,M44D,Adult Social Care Operations,Supplies and Services,"2,165.96",Apr-23
Slough Borough Council,803238,Oasis Care and Training Agency,M44F,Adult Social Care Operations,Supplies and Services,"2,836.35",Apr-23
Slough Borough Council,803238,Oasis Care and Training Agency,M44F,Adult Social Care Operations,Supplies and Services,"4,641.30",Apr-23
Slough Borough Council,803238,Oasis Care and Training Agency,M44F,Adult Social Care Operations,Supplies and Services,"1,375.20",Apr-23
Slough Borough Council,803238,Oasis Care and Training Agency,M45C,Adult Social Care Operations,Supplies and Services,"1,211.90",Apr-23
Slough Borough Council,803238,Oasis Care and Training Agency,M45C,Adult Social Care Operations,Supplies and Services,601.64,Apr-23
Slough Borough Council,803238,Oasis Care and Training Agency,M45C,Adult Social Care Operations,Supplies and Services,601.64,Apr-23
Slough Borough Council,803238,Oasis Care and Training Agency,M45C,Adult Social Care Operations,Supplies and Services,842.32,Apr-23
Slough Borough Council,803238,Oasis Care and Training Agency,M85F,People Adults,Supplies and Services,524.30,Apr-23
Slough Borough Council,1767,Olive Tree Montessori Ltd,F909,Children & Families,Supplies and Services,"20,439.93",Apr-23
Slough Borough Council,3603,Olympia Transport Limited,F123,Education & Inclusion,Supplies and Services,"2,256.00",Apr-23
Slough Borough Council,3603,Olympia Transport Limited,F123,Education & Inclusion,Supplies and Services,"12,389.99",Apr-23
Slough Borough Council,804687,Optalis Limited,M42E,Adult Social Care Operations,Supplies and Services,"4,807.26",Apr-23
Slough Borough Council,804687,Optalis Limited,M42E,Adult Social Care Operations,Supplies and Services,"5,642.13",Apr-23
Slough Borough Council,803490,Optimum Specialised Home Limited,M26E,Adult Social Care Operations,Supplies and Services,"8,400.00",Apr-23
Slough Borough Council,803490,Optimum Specialised Home Limited,M26E,Adult Social Care Operations,Supplies and Services,"7,200.00",Apr-23
Slough Borough Council,803490,Optimum Specialised Home Limited,M26E,Adult Social Care Operations,Supplies and Services,"7,180.00",Apr-23
Slough Borough Council,806959,Oracle Corporation,B282,Digital and Strategic IT,Supplies and Services,"1,520.55",Apr-23
Slough Borough Council,803960,Orchard Hill College,F558,Children & Families,Supplies and Services,"12,299.09",Apr-23
Slough Borough Council,808579,Origin Amenity Solutions Ltd,D750,Place Operations,Supplies and Services,"6,731.82",Apr-23
Slough Borough Council,808579,Origin Amenity Solutions Ltd,D750,Place Operations,Supplies and Services,"1,109.60",Apr-23
Slough Borough Council,805011,Osborne Property Services Limited,J607,Place Management,Premises,"194,801.43",Apr-23
Slough Borough Council,805011,Osborne Property Services Limited,J606,Place Management,Supplies and Services,"107,334.55",Apr-23
Slough Borough Council,805011,Osborne Property Services Limited,P409,Capital,Capital Charges,"30,886.50",Apr-23
Slough Borough Council,805011,Osborne Property Services Limited,P413,Capital,Capital Charges,"29,750.00",Apr-23
Slough Borough Council,805011,Osborne Property Services Limited,P417,Capital,Capital Charges,"132,998.86",Apr-23
Slough Borough Council,805011,Osborne Property Services Limited,P418,Capital,Capital Charges,"9,471.34",Apr-23
Slough Borough Council,805011,Osborne Property Services Limited,P418,Capital,Capital Charges,"26,723.87",Apr-23
Slough Borough Council,805011,Osborne Property Services Limited,P419,Capital,Capital Charges,"134,491.76",Apr-23
Slough Borough Council,805011,Osborne Property Services Limited,P419,Capital,Capital Charges,"108,995.00",Apr-23
Slough Borough Council,805011,Osborne Property Services Limited,P419,Capital,Capital Charges,"208,884.19",Apr-23
Slough Borough Council,805011,Osborne Property Services Limited,P431,Capital,Capital Charges,"210,966.29",Apr-23
Slough Borough Council,805011,Osborne Property Services Limited,P431,Capital,Capital Charges,"31,170.41",Apr-23
Slough Borough Council,805011,Osborne Property Services Limited,J607,Place Management,Supplies and Services,"136,142.06",Apr-23
Slough Borough Council,680,Oxford House Community Care,M44C,Adult Social Care Operations,Supplies and Services,"1,219.12",Apr-23
Slough Borough Council,680,Oxford House Community Care,M44C,Adult Social Care Operations,Supplies and Services,"3,003.00",Apr-23
Slough Borough Council,680,Oxford House Community Care,M44C,Adult Social Care Operations,Supplies and Services,"2,703.81",Apr-23
Slough Borough Council,680,Oxford House Community Care,M44C,Adult Social Care Operations,Supplies and Services,682.51,Apr-23
Slough Borough Council,680,Oxford House Community Care,M44C,Adult Social Care Operations,Supplies and Services,"1,291.14",Apr-23
Slough Borough Council,680,Oxford House Community Care,M44C,Adult Social Care Operations,Supplies and Services,635.83,Apr-23
Slough Borough Council,680,Oxford House Community Care,M44C,Adult Social Care Operations,Supplies and Services,"1,092.00",Apr-23
Slough Borough Council,680,Oxford House Community Care,M44C,Adult Social Care Operations,Supplies and Services,"2,430.41",Apr-23
Slough Borough Council,680,Oxford House Community Care,M44C,Adult Social Care Operations,Supplies and Services,"3,276.00",Apr-23
Slough Borough Council,680,Oxford House Community Care,M44C,Adult Social Care Operations,Supplies and Services,"1,170.95",Apr-23
Slough Borough Council,680,Oxford House Community Care,M44C,Adult Social Care Operations,Supplies and Services,"1,365.00",Apr-23
Slough Borough Council,680,Oxford House Community Care,M44C,Adult Social Care Operations,Supplies and Services,923.84,Apr-23
Slough Borough Council,680,Oxford House Community Care,M44C,Adult Social Care Operations,Supplies and Services,"1,328.65",Apr-23
Slough Borough Council,680,Oxford House Community Care,M44D,Adult Social Care Operations,Supplies and Services,819.00,Apr-23
Slough Borough Council,680,Oxford House Community Care,M44D,Adult Social Care Operations,Supplies and Services,"1,174.12",Apr-23
Slough Borough Council,680,Oxford House Community Care,M44D,Adult Social Care Operations,Supplies and Services,"2,457.00",Apr-23
Slough Borough Council,680,Oxford House Community Care,M44D,Adult Social Care Operations,Supplies and Services,664.72,Apr-23
Slough Borough Council,680,Oxford House Community Care,M48C,Adult Social Care Operations,Supplies and Services,883.74,Apr-23
Slough Borough Council,680,Oxford House Community Care,M48C,Adult Social Care Operations,Supplies and Services,546.00,Apr-23
Slough Borough Council,680,Oxford House Community Care,M48C,Adult Social Care Operations,Supplies and Services,"1,075.06",Apr-23
Slough Borough Council,867,Oxfordshire County Council,D206,Place Strategy & Infrastructure,Supplies and Services,"2,710.00",Apr-23
Slough Borough Council,2520,Paradigm Housing Group Ltd,H205,Housing (People) Services,Premises,"7,350.69",Apr-23
Slough Borough Council,808679,PARBHAN LTD,H205,Housing (People) Services,Supplies and Services,"8,655.00",Apr-23
Slough Borough Council,2461,PARK NOW LIMITED,D123,Place Strategy & Infrastructure,Supplies and Services,"6,246.28",Apr-23
Slough Borough Council,2461,PARK NOW LIMITED,D123,Place Strategy & Infrastructure,Supplies and Services,"7,222.13",Apr-23
Slough Borough Council,3271,Partnership In Care Ltd,M44F,Adult Social Care Operations,Supplies and Services,"2,982.26",Apr-23
Slough Borough Council,3271,Partnership In Care Ltd,M44F,Adult Social Care Operations,Supplies and Services,"3,081.67",Apr-23
Slough Borough Council,3271,Partnership In Care Ltd,M44F,Adult Social Care Operations,Supplies and Services,"3,081.67",Apr-23
Slough Borough Council,2509,Parvaaz Project,M44E,Adult Social Care Operations,Supplies and Services,678.60,Apr-23
Slough Borough Council,2509,Parvaaz Project,M44E,Adult Social Care Operations,Supplies and Services,678.60,Apr-23
Slough Borough Council,2509,Parvaaz Project,M44E,Adult Social Care Operations,Supplies and Services,678.60,Apr-23
Slough Borough Council,2509,Parvaaz Project,M44E,Adult Social Care Operations,Supplies and Services,678.60,Apr-23
Slough Borough Council,2509,Parvaaz Project,M44E,Adult Social Care Operations,Supplies and Services,678.60,Apr-23
Slough Borough Council,2509,Parvaaz Project,M50E,Adult Social Care Operations,Supplies and Services,800.40,Apr-23
Slough Borough Council,2509,Parvaaz Project,M50E,Adult Social Care Operations,Supplies and Services,800.40,Apr-23
Slough Borough Council,2509,Parvaaz Project,M50E,Adult Social Care Operations,Supplies and Services,800.40,Apr-23
Slough Borough Council,2509,Parvaaz Project,M50E,Adult Social Care Operations,Supplies and Services,800.40,Apr-23
Slough Borough Council,2509,Parvaaz Project,M50E,Adult Social Care Operations,Supplies and Services,800.40,Apr-23
Slough Borough Council,807405,PayPoint Network Ltd,H055,Finance & Commercial,Supplies and Services,"1,175.05",Apr-23
Slough Borough Council,807405,PayPoint Network Ltd,H055,Finance & Commercial,Supplies and Services,768.56,Apr-23
Slough Borough Council,807405,PayPoint Network Ltd,H055,Finance & Commercial,Supplies and Services,"1,147.93",Apr-23
Slough Borough Council,807405,PayPoint Network Ltd,H055,Finance & Commercial,Supplies and Services,"1,421.00",Apr-23
Slough Borough Council,807405,PayPoint Network Ltd,H055,Finance & Commercial,Supplies and Services,"2,854.05",Apr-23
Slough Borough Council,824,Penn Wood Primary and Nursery School,E450,Children & Families,Supplies and Services,"321,663.52",Apr-23
Slough Borough Council,808606,Pentwyn House Nursing Home,M18C,Adult Social Care Operations,Supplies and Services,"4,071.30",Apr-23
Slough Borough Council,807611,Peopletoo Ltd,A01D,People Adults,Supplies and Services,"20,735.00",Apr-23
Slough Borough Council,1504,Permanent Futures Limited,F410,Children & Families,Agency Staff,"1,350.00",Apr-23
Slough Borough Council,1504,Permanent Futures Limited,F410,Children & Families,Agency Staff,"1,350.00",Apr-23
Slough Borough Council,1504,Permanent Futures Limited,F410,Children & Families,Agency Staff,"1,350.00",Apr-23
Slough Borough Council,1504,Permanent Futures Limited,F410,Children & Families,Agency Staff,"2,250.00",Apr-23
Slough Borough Council,807727,Phoenix Infant Academy c/o Thames Learning Trust,E620,Children & Families,Supplies and Services,"19,783.10",Apr-23
Slough Borough Council,3359,Pippins School,E370,Children & Families,Supplies and Services,"27,184.57",Apr-23
Slough Borough Council,904,Pitney Bowes Finance Plc,K077,Business Services,Supplies and Services,"10,259.64",Apr-23
Slough Borough Council,807120,PJ Care Limited,M15D,Adult Social Care Operations,Supplies and Services,"9,514.50",Apr-23
Slough Borough Council,808881,PKB MANAGEMENT LTD,H205,Housing (People) Services,Supplies and Services,"11,385.00",Apr-23
Slough Borough Council,808881,PKB MANAGEMENT LTD,H205,Housing (People) Services,Supplies and Services,"5,390.00",Apr-23
Slough Borough Council,808563,Play & Care,F909,Children & Families,Supplies and Services,566.48,Apr-23
Slough Borough Council,806875,Portsmouth City Council,P093,Capital,Capital Charges,"4,521.84",Apr-23
Slough Borough Council,806875,Portsmouth City Council,P093,Capital,Capital Charges,"5,603.19",Apr-23
Slough Borough Council,803188,Pre Paid Financial Services Ltd,A05C,People Strategy & Commissioning,Supplies and Services,"1,716.00",Apr-23
Slough Borough Council,2537,Pre School Stars,F909,Children & Families,Supplies and Services,"7,371.37",Apr-23
Slough Borough Council,807164,Premier Tail Lifts LTD,M50A,Place Operations,Transport,981.00,Apr-23
Slough Borough Council,849,Priory Primary School,E380,Children & Families,Supplies and Services,"402,941.11",Apr-23
Slough Borough Council,808180,Proact,B342,Digital and Strategic IT,Capital Charges,"2,200.00",Apr-23
Slough Borough Council,1138,Qed Slough Ltd,F868,Children & Families,Supplies and Services,"594,636.82",Apr-23
Slough Borough Council,808200,Quest Recovery Services Ltd,M44C,Adult Social Care Operations,Supplies and Services,"2,157.12",Apr-23
Slough Borough Council,808200,Quest Recovery Services Ltd,M44C,Adult Social Care Operations,Supplies and Services,719.04,Apr-23
Slough Borough Council,808200,Quest Recovery Services Ltd,M44C,Adult Social Care Operations,Supplies and Services,"1,070.00",Apr-23
Slough Borough Council,808200,Quest Recovery Services Ltd,M44C,Adult Social Care Operations,Supplies and Services,599.20,Apr-23
Slough Borough Council,808200,Quest Recovery Services Ltd,M44C,Adult Social Care Operations,Supplies and Services,"1,078.56",Apr-23
Slough Borough Council,808200,Quest Recovery Services Ltd,M44C,Adult Social Care Operations,Supplies and Services,"1,078.56",Apr-23
Slough Borough Council,808200,Quest Recovery Services Ltd,M44D,Adult Social Care Operations,Supplies and Services,778.24,Apr-23
Slough Borough Council,808200,Quest Recovery Services Ltd,M44D,Adult Social Care Operations,Supplies and Services,"2,876.16",Apr-23
Slough Borough Council,808200,Quest Recovery Services Ltd,M44D,Adult Social Care Operations,Supplies and Services,"1,078.56",Apr-23
Slough Borough Council,808200,Quest Recovery Services Ltd,M44D,Adult Social Care Operations,Supplies and Services,500.76,Apr-23
Slough Borough Council,808200,Quest Recovery Services Ltd,M44E,Adult Social Care Operations,Supplies and Services,"1,917.44",Apr-23
Slough Borough Council,808200,Quest Recovery Services Ltd,M44E,Adult Social Care Operations,Supplies and Services,"1,917.44",Apr-23
Slough Borough Council,808200,Quest Recovery Services Ltd,M44E,Adult Social Care Operations,Supplies and Services,"1,917.44",Apr-23
Slough Borough Council,808200,Quest Recovery Services Ltd,M45C,Adult Social Care Operations,Supplies and Services,"1,078.56",Apr-23
Slough Borough Council,808200,Quest Recovery Services Ltd,M45C,Adult Social Care Operations,Supplies and Services,"1,078.56",Apr-23
Slough Borough Council,808200,Quest Recovery Services Ltd,M45C,Adult Social Care Operations,Supplies and Services,958.72,Apr-23
Slough Borough Council,808200,Quest Recovery Services Ltd,M45C,Adult Social Care Operations,Supplies and Services,577.80,Apr-23
Slough Borough Council,808200,Quest Recovery Services Ltd,M48C,Adult Social Care Operations,Supplies and Services,"2,157.12",Apr-23
Slough Borough Council,808200,Quest Recovery Services Ltd,M48C,Adult Social Care Operations,Supplies and Services,"1,078.56",Apr-23
Slough Borough Council,808656,QuickThink Cloud Limited,B282,Digital and Strategic IT,Supplies and Services,"7,446.69",Apr-23
Slough Borough Council,808656,QuickThink Cloud Limited,B282,Digital and Strategic IT,Supplies and Services,"7,892.28",Apr-23
Slough Borough Council,808656,QuickThink Cloud Limited,B282,Digital and Strategic IT,Supplies and Services,"8,049.60",Apr-23
Slough Borough Council,2685,R.E.A.C.H,M26E,Adult Social Care Operations,Supplies and Services,"10,591.40",Apr-23
Slough Borough Council,2685,R.E.A.C.H,M26E,Adult Social Care Operations,Supplies and Services,"5,556.80",Apr-23
Slough Borough Council,2685,R.E.A.C.H,M26E,Adult Social Care Operations,Supplies and Services,"7,667.52",Apr-23
Slough Borough Council,2685,R.E.A.C.H,M26E,Adult Social Care Operations,Supplies and Services,"7,142.96",Apr-23
Slough Borough Council,2685,R.E.A.C.H,M26E,Adult Social Care Operations,Supplies and Services,"6,191.08",Apr-23
Slough Borough Council,2685,R.E.A.C.H,M26E,Adult Social Care Operations,External Receipts,-574.80,Apr-23
Slough Borough Council,2685,R.E.A.C.H,M26E,Adult Social Care Operations,External Receipts,-641.20,Apr-23
Slough Borough Council,806766,Red Brick Care Ltd,M44C,Adult Social Care Operations,Supplies and Services,"2,210.00",Apr-23
Slough Borough Council,806766,Red Brick Care Ltd,M44C,Adult Social Care Operations,Supplies and Services,"2,210.00",Apr-23
Slough Borough Council,806766,Red Brick Care Ltd,M44C,Adult Social Care Operations,Supplies and Services,"2,142.00",Apr-23
Slough Borough Council,804359,Redacted,F123,Education & Inclusion,Supplies and Services,"1,143.72",Apr-23
Slough Borough Council,808145,Redacted,F123,Education & Inclusion,Supplies and Services,500.85,Apr-23
Slough Borough Council,807635,Redacted,F123,Education & Inclusion,Supplies and Services,567.00,Apr-23
Slough Borough Council,804506,Redacted,F123,Education & Inclusion,Supplies and Services,538.20,Apr-23
Slough Borough Council,805321,Redacted,F909,Children & Families,Supplies and Services,566.48,Apr-23
Slough Borough Council,805084,Redacted,F909,Children & Families,Supplies and Services,906.36,Apr-23
Slough Borough Council,806541,Redacted,F909,Children & Families,Supplies and Services,"18,088.50",Apr-23
Slough Borough Council,3903,Redacted,F909,Children & Families,Supplies and Services,906.36,Apr-23
Slough Borough Council,805403,Redacted,F909,Children & Families,Supplies and Services,566.48,Apr-23
Slough Borough Council,3834,Redacted,F909,Children & Families,Supplies and Services,566.48,Apr-23
Slough Borough Council,3173,Redacted,F909,Children & Families,Supplies and Services,906.36,Apr-23
Slough Borough Council,3934,Redacted,F909,Children & Families,Supplies and Services,566.48,Apr-23
Slough Borough Council,3209,Redacted,F909,Children & Families,Supplies and Services,906.36,Apr-23
Slough Borough Council,804932,Redacted,F909,Children & Families,Supplies and Services,"1,864.76",Apr-23
Slough Borough Council,807443,Redacted,F909,Children & Families,Supplies and Services,566.48,Apr-23
Slough Borough Council,807233,Redacted,F909,Children & Families,Supplies and Services,566.48,Apr-23
Slough Borough Council,803824,Redacted,F909,Children & Families,Supplies and Services,"2,094.69",Apr-23
Slough Borough Council,807475,Redacted,F909,Children & Families,Supplies and Services,"1,763.87",Apr-23
Slough Borough Council,805461,Redacted,F909,Children & Families,Supplies and Services,566.48,Apr-23
Slough Borough Council,803853,Redacted,F909,Children & Families,Supplies and Services,"1,359.54",Apr-23
Slough Borough Council,807647,Redacted,F909,Children & Families,Supplies and Services,906.36,Apr-23
Slough Borough Council,807836,Redacted,F909,Children & Families,Supplies and Services,"1,485.41",Apr-23
Slough Borough Council,807698,Redacted,F909,Children & Families,Supplies and Services,"1,073.15",Apr-23
Slough Borough Council,803874,Redacted,F909,Children & Families,Supplies and Services,"1,342.11",Apr-23
Slough Borough Council,805946,Redacted,F909,Children & Families,Supplies and Services,550.63,Apr-23
Slough Borough Council,803819,Redacted,F909,Children & Families,Supplies and Services,"1,118.83",Apr-23
Slough Borough Council,805806,Redacted,F909,Children & Families,Supplies and Services,566.48,Apr-23
Slough Borough Council,806854,Reed Specialist Recruitment,B033,People,Salaries and Wages,996.98,Apr-23
Slough Borough Council,806854,Reed Specialist Recruitment,B033,People,Salaries and Wages,970.57,Apr-23
Slough Borough Council,806854,Reed Specialist Recruitment,B033,People,Salaries and Wages,990.38,Apr-23
Slough Borough Council,806854,Reed Specialist Recruitment,B033,People,Salaries and Wages,990.38,Apr-23
Slough Borough Council,806854,Reed Specialist Recruitment,B033,People,Salaries and Wages,620.64,Apr-23
Slough Borough Council,1894,Reed Specialist Recruitment Limited,B348,People,Support Services,620.64,Apr-23
Slough Borough Council,1894,Reed Specialist Recruitment Limited,B348,People,Support Services,990.38,Apr-23
Slough Borough Council,1894,Reed Specialist Recruitment Limited,B348,People,Support Services,990.38,Apr-23
Slough Borough Council,6,Re-Format Llp,P153,Capital,Capital Charges,"1,362.75",Apr-23
Slough Borough Council,2229,Reliance High-Tech Limited (T/A Reliance Project),A07E,Adult Social Care Operations,Supplies and Services,"1,798.20",Apr-23
Slough Borough Council,807562,Renovo Farnborough Limited,M25D,Adult Social Care Operations,Supplies and Services,"8,433.64",Apr-23
Slough Borough Council,1893,Ricardo-Aea Limited,D308,Place Operations,Supplies and Services,"26,674.50",Apr-23
Slough Borough Council,1553,Robyn Baker,C322,Community,Supplies and Services,"1,023.00",Apr-23
Slough Borough Council,696,Royal Borough Of Windsor And Maidenhead,F552,Children & Families,Supplies and Services,870.00,Apr-23
Slough Borough Council,842,Ryvers Primary School,E620,Children & Families,Supplies and Services,"18,366.33",Apr-23
Slough Borough Council,842,Ryvers Primary School,F200,Education & Inclusion,Supplies and Services,"15,000.00",Apr-23
Slough Borough Council,806398,Saba Park UK Services Limited,D122,Place Strategy & Infrastructure,Premises,"14,512.21",Apr-23
Slough Borough Council,806398,Saba Park UK Services Limited,D122,Place Strategy & Infrastructure,Premises,581.58,Apr-23
Slough Borough Council,806398,Saba Park UK Services Limited,D122,Place Strategy & Infrastructure,Premises,"14,512.21",Apr-23
Slough Borough Council,806398,Saba Park UK Services Limited,D123,Place Strategy & Infrastructure,Supplies and Services,528.97,Apr-23
Slough Borough Council,806398,Saba Park UK Services Limited,D123,Place Strategy & Infrastructure,Supplies and Services,"2,781.36",Apr-23
Slough Borough Council,806398,Saba Park UK Services Limited,D123,Place Strategy & Infrastructure,Supplies and Services,"3,325.00",Apr-23
Slough Borough Council,806398,Saba Park UK Services Limited,D123,Place Strategy & Infrastructure,Supplies and Services,"106,254.21",Apr-23
Slough Borough Council,806398,Saba Park UK Services Limited,D123,Place Strategy & Infrastructure,Supplies and Services,"110,439.37",Apr-23
Slough Borough Council,806398,Saba Park UK Services Limited,D122,Place Strategy & Infrastructure,Supplies and Services,"11,806.02",Apr-23
Slough Borough Council,806398,Saba Park UK Services Limited,D122,Place Strategy & Infrastructure,Supplies and Services,"12,271.04",Apr-23
Slough Borough Council,806398,Saba Park UK Services Limited,D123,Place Strategy & Infrastructure,Supplies and Services,"1,792.73",Apr-23
Slough Borough Council,806398,Saba Park UK Services Limited,D123,Place Strategy & Infrastructure,Supplies and Services,"1,792.73",Apr-23
Slough Borough Council,806398,Saba Park UK Services Limited,D010,Place Strategy & Infrastructure,Supplies and Services,"19,733.58",Apr-23
Slough Borough Council,806398,Saba Park UK Services Limited,D010,Place Strategy & Infrastructure,Supplies and Services,"19,179.97",Apr-23
Slough Borough Council,805875,Salutem Shared Services,M25D,Adult Social Care Operations,Supplies and Services,"6,174.81",Apr-23
Slough Borough Council,805875,Salutem Shared Services,M26E,Adult Social Care Operations,Supplies and Services,"4,018.65",Apr-23
Slough Borough Council,805875,Salutem Shared Services,M26E,Adult Social Care Operations,Supplies and Services,607.78,Apr-23
Slough Borough Council,805875,Salutem Shared Services,M26E,Adult Social Care Operations,External Receipts,-607.76,Apr-23
Slough Borough Council,804350,Sandra's Childcare,F909,Children & Families,Supplies and Services,566.48,Apr-23
Slough Borough Council,3169,Seeability,M26E,Adult Social Care Operations,Supplies and Services,"11,832.08",Apr-23
Slough Borough Council,3169,Seeability,M26E,Adult Social Care Operations,Supplies and Services,"7,354.04",Apr-23
Slough Borough Council,808140,Service to the Aged Ltd,M15D,Adult Social Care Operations,Supplies and Services,"3,990.01",Apr-23
Slough Borough Council,1853,Shamita Ray,C322,Community,Supplies and Services,812.00,Apr-23
Slough Borough Council,808814,Shine Partnerships Ltd,M42F,Adult Social Care Operations,Supplies and Services,"1,744.20",Apr-23
Slough Borough Council,808814,Shine Partnerships Ltd,M42F,Adult Social Care Operations,Supplies and Services,"1,744.20",Apr-23
Slough Borough Council,808814,Shine Partnerships Ltd,M42F,Adult Social Care Operations,Supplies and Services,"1,802.34",Apr-23
Slough Borough Council,808814,Shine Partnerships Ltd,M42F,Adult Social Care Operations,Supplies and Services,"1,453.50",Apr-23
Slough Borough Council,808814,Shine Partnerships Ltd,M42F,Adult Social Care Operations,Supplies and Services,"1,802.34",Apr-23
Slough Borough Council,808814,Shine Partnerships Ltd,M42F,Adult Social Care Operations,Supplies and Services,"1,802.34",Apr-23
Slough Borough Council,808814,Shine Partnerships Ltd,M42F,Adult Social Care Operations,Supplies and Services,"1,744.20",Apr-23
Slough Borough Council,808814,Shine Partnerships Ltd,M42F,Adult Social Care Operations,Supplies and Services,"1,802.34",Apr-23
Slough Borough Council,808814,Shine Partnerships Ltd,M42F,Adult Social Care Operations,Supplies and Services,"1,802.34",Apr-23
Slough Borough Council,808814,Shine Partnerships Ltd,M42F,Adult Social Care Operations,Supplies and Services,"1,627.92",Apr-23
Slough Borough Council,805203,Shorts Agricultural Services Ltd,D342,Place Operations,Supplies and Services,691.20,Apr-23
Slough Borough Council,805203,Shorts Agricultural Services Ltd,D342,Place Operations,Supplies and Services,"9,693.68",Apr-23
Slough Borough Council,808216,SJG Consultancy Ltd,F123,Education & Inclusion,Supplies and Services,"20,416.25",Apr-23
Slough Borough Council,808698,SKB INVESTMENTS LTD,H205,Housing (People) Services,Supplies and Services,"1,705.00",Apr-23
Slough Borough Council,472,Slough & Eton C.E.School,B297,Finance & Commercial,Government Grants,"10,290.00",Apr-23
Slough Borough Council,1459,Slough And Eton C E School,E610,Children & Families,Supplies and Services,"24,500.00",Apr-23
Slough Borough Council,808680,SLOUGH CITY REAL ESTATE LTD,H205,Housing (People) Services,Supplies and Services,"112,440.00",Apr-23
Slough Borough Council,276,Slough Community Transport & Shopmobility,F123,Education & Inclusion,Supplies and Services,"37,773.00",Apr-23
Slough Borough Council,1913,Slough Crossroads Caring For Carers,M44C,Adult Social Care Operations,Supplies and Services,744.00,Apr-23
Slough Borough Council,1913,Slough Crossroads Caring For Carers,M44C,Adult Social Care Operations,Supplies and Services,"1,120.00",Apr-23
Slough Borough Council,1913,Slough Crossroads Caring For Carers,M44D,Adult Social Care Operations,Supplies and Services,648.00,Apr-23
Slough Borough Council,1913,Slough Crossroads Caring For Carers,M44D,Adult Social Care Operations,Supplies and Services,"1,008.00",Apr-23
Slough Borough Council,1913,Slough Crossroads Caring For Carers,M44D,Adult Social Care Operations,Supplies and Services,636.00,Apr-23
Slough Borough Council,1913,Slough Crossroads Caring For Carers,M44D,Adult Social Care Operations,Supplies and Services,648.00,Apr-23
Slough Borough Council,3503,Slough Day Nursery,F909,Children & Families,Supplies and Services,"5,725.95",Apr-23
Slough Borough Council,804380,Slough Refugee Council,F382,Children & Families,Supplies and Services,"5,000.00",Apr-23
Slough Borough Council,804380,Slough Refugee Council,B211,Community,Supplies and Services,"15,116.96",Apr-23
Slough Borough Council,806733,Smart Move (Estate Agents UK) LTD,H205,Housing (People) Services,Supplies and Services,"2,060.00",Apr-23
Slough Borough Council,382,Softcat Plc,B342,Digital and Strategic IT,Supplies and Services,"20,400.00",Apr-23
Slough Borough Council,114,Solutions 4 Health Ltd,A01P,Public Health,Supplies and Services,"229,057.81",Apr-23
Slough Borough Council,114,Solutions 4 Health Ltd,A01P,Public Health,Supplies and Services,"51,833.33",Apr-23
Slough Borough Council,1598,Sorbon Estates Limited,H205,Housing (People) Services,Premises,"6,040.83",Apr-23
Slough Borough Council,1598,Sorbon Estates Limited,H205,Housing (People) Services,Premises,"6,040.83",Apr-23
Slough Borough Council,807995,Sport4Kids,F382,Children & Families,Supplies and Services,"3,049.20",Apr-23
Slough Borough Council,808144,Sports Inc,F382,Children & Families,Supplies and Services,"11,832.00",Apr-23
Slough Borough Council,1875,Ss & Kk. Hothi,H205,Housing (People) Services,Premises,"15,816.66",Apr-23
Slough Borough Council,1875,Ss & Kk. Hothi,H205,Housing (People) Services,Premises,"11,777.25",Apr-23
Slough Borough Council,803165,St Anthony's Catholic Primary School & Nursery,E620,Children & Families,Supplies and Services,"19,910.00",Apr-23
Slough Borough Council,3383,St Bernards Catholic Grammar School,E550,Children & Families,Supplies and Services,"548,467.87",Apr-23
Slough Borough Council,2918,St Bernard'S Rc Preparatory School,F909,Children & Families,Supplies and Services,"14,424.78",Apr-23
Slough Borough Council,808813,St David's Home,M28C,Adult Social Care Operations,Supplies and Services,"6,642.86",Apr-23
Slough Borough Council,3547,St Ethelberts School,E620,Children & Families,Supplies and Services,"19,206.96",Apr-23
Slough Borough Council,1378,St Josephs Catholic High School,E610,Children & Families,Supplies and Services,"6,414.38",Apr-23
Slough Borough Council,806013,ST MARY'S CHURCH OF ENGLAND PRIMARY SCHOOL,E420,Children & Families,Supplies and Services,"292,291.67",Apr-23
Slough Borough Council,806115,Stepping Stones,F909,Children & Families,Supplies and Services,566.48,Apr-23
Slough Borough Council,806242,Sterling Transcription,B015,Finance & Commercial,Supplies and Services,679.80,Apr-23
Slough Borough Council,803291,Stroke Association,A06C,People Strategy & Commissioning,Supplies and Services,"41,200.00",Apr-23
Slough Borough Council,807889,Sunrise Transport Ltd,F123,Education & Inclusion,Supplies and Services,"3,404.00",Apr-23
Slough Borough Council,807889,Sunrise Transport Ltd,F123,Education & Inclusion,Supplies and Services,"3,680.00",Apr-23
Slough Borough Council,807889,Sunrise Transport Ltd,F123,Education & Inclusion,Supplies and Services,"11,675.00",Apr-23
Slough Borough Council,808664,Sunspeed Transport Services Ltd,B342,Digital and Strategic IT,Capital Charges,"3,300.00",Apr-23
Slough Borough Council,293,Surecare Slough,M41D,Adult Social Care Operations,Supplies and Services,"2,466.65",Apr-23
Slough Borough Council,293,Surecare Slough,M44C,Adult Social Care Operations,Supplies and Services,823.20,Apr-23
Slough Borough Council,293,Surecare Slough,M44C,Adult Social Care Operations,Supplies and Services,"2,680.30",Apr-23
Slough Borough Council,293,Surecare Slough,M44C,Adult Social Care Operations,Supplies and Services,"2,469.60",Apr-23
Slough Borough Council,293,Surecare Slough,M44C,Adult Social Care Operations,Supplies and Services,"2,469.60",Apr-23
Slough Borough Council,293,Surecare Slough,M44C,Adult Social Care Operations,Supplies and Services,"1,901.85",Apr-23
Slough Borough Council,293,Surecare Slough,M44C,Adult Social Care Operations,Supplies and Services,821.90,Apr-23
Slough Borough Council,293,Surecare Slough,M44C,Adult Social Care Operations,Supplies and Services,"2,305.61",Apr-23
Slough Borough Council,293,Surecare Slough,M44C,Adult Social Care Operations,Supplies and Services,960.40,Apr-23
Slough Borough Council,293,Surecare Slough,M44C,Adult Social Care Operations,Supplies and Services,548.80,Apr-23
Slough Borough Council,293,Surecare Slough,M44C,Adult Social Care Operations,Supplies and Services,"1,920.80",Apr-23
Slough Borough Council,293,Surecare Slough,M44C,Adult Social Care Operations,Supplies and Services,548.80,Apr-23
Slough Borough Council,293,Surecare Slough,M44C,Adult Social Care Operations,Supplies and Services,"2,567.60",Apr-23
Slough Borough Council,293,Surecare Slough,M44C,Adult Social Care Operations,Supplies and Services,"3,000.07",Apr-23
Slough Borough Council,293,Surecare Slough,M44C,Adult Social Care Operations,Supplies and Services,959.42,Apr-23
Slough Borough Council,293,Surecare Slough,M44C,Adult Social Care Operations,Supplies and Services,959.10,Apr-23
Slough Borough Council,293,Surecare Slough,M44C,Adult Social Care Operations,Supplies and Services,"1,233.49",Apr-23
Slough Borough Council,293,Surecare Slough,M44C,Adult Social Care Operations,Supplies and Services,-718.98,Apr-23
Slough Borough Council,293,Surecare Slough,M44C,Adult Social Care Operations,Supplies and Services,"1,042.38",Apr-23
Slough Borough Council,293,Surecare Slough,M44C,Adult Social Care Operations,Supplies and Services,"2,469.60",Apr-23
Slough Borough Council,293,Surecare Slough,M44C,Adult Social Care Operations,Supplies and Services,"1,182.54",Apr-23
Slough Borough Council,293,Surecare Slough,M44C,Adult Social Care Operations,Supplies and Services,"2,469.60",Apr-23
Slough Borough Council,293,Surecare Slough,M44C,Adult Social Care Operations,Supplies and Services,"1,073.73",Apr-23
Slough Borough Council,293,Surecare Slough,M44C,Adult Social Care Operations,Supplies and Services,"1,292.62",Apr-23
Slough Borough Council,293,Surecare Slough,M44C,Adult Social Care Operations,Supplies and Services,"1,073.06",Apr-23
Slough Borough Council,293,Surecare Slough,M44C,Adult Social Care Operations,Supplies and Services,830.99,Apr-23
Slough Borough Council,293,Surecare Slough,M44C,Adult Social Care Operations,Supplies and Services,"1,445.83",Apr-23
Slough Borough Council,293,Surecare Slough,M44C,Adult Social Care Operations,Supplies and Services,911.40,Apr-23
Slough Borough Council,293,Surecare Slough,M44C,Adult Social Care Operations,Supplies and Services,"1,234.47",Apr-23
Slough Borough Council,293,Surecare Slough,M44C,Adult Social Care Operations,Supplies and Services,511.56,Apr-23
Slough Borough Council,293,Surecare Slough,M44C,Adult Social Care Operations,Supplies and Services,"2,469.60",Apr-23
Slough Borough Council,293,Surecare Slough,M44C,Adult Social Care Operations,Supplies and Services,980.00,Apr-23
Slough Borough Council,293,Surecare Slough,M44C,Adult Social Care Operations,Supplies and Services,957.48,Apr-23
Slough Borough Council,293,Surecare Slough,M44C,Adult Social Care Operations,Supplies and Services,"1,367.42",Apr-23
Slough Borough Council,293,Surecare Slough,M44C,Adult Social Care Operations,Supplies and Services,582.96,Apr-23
Slough Borough Council,293,Surecare Slough,M44D,Adult Social Care Operations,Supplies and Services,"2,469.60",Apr-23
Slough Borough Council,293,Surecare Slough,M44D,Adult Social Care Operations,Supplies and Services,"1,372.00",Apr-23
Slough Borough Council,293,Surecare Slough,M44D,Adult Social Care Operations,Supplies and Services,"1,372.00",Apr-23
Slough Borough Council,293,Surecare Slough,M44D,Adult Social Care Operations,Supplies and Services,"2,166.13",Apr-23
Slough Borough Council,293,Surecare Slough,M44D,Adult Social Care Operations,Supplies and Services,"2,587.20",Apr-23
Slough Borough Council,293,Surecare Slough,M44D,Adult Social Care Operations,Supplies and Services,"1,480.74",Apr-23
Slough Borough Council,293,Surecare Slough,M44D,Adult Social Care Operations,Supplies and Services,"1,234.80",Apr-23
Slough Borough Council,293,Surecare Slough,M44D,Adult Social Care Operations,Supplies and Services,"2,647.30",Apr-23
Slough Borough Council,293,Surecare Slough,M44E,Adult Social Care Operations,Supplies and Services,823.20,Apr-23
Slough Borough Council,293,Surecare Slough,M44E,Adult Social Care Operations,Supplies and Services,842.80,Apr-23
Slough Borough Council,293,Surecare Slough,M44E,Adult Social Care Operations,Supplies and Services,705.60,Apr-23
Slough Borough Council,293,Surecare Slough,M44F,Adult Social Care Operations,Supplies and Services,666.40,Apr-23
Slough Borough Council,293,Surecare Slough,M45C,Adult Social Care Operations,Supplies and Services,"2,469.60",Apr-23
Slough Borough Council,293,Surecare Slough,M45C,Adult Social Care Operations,Supplies and Services,"2,469.60",Apr-23
Slough Borough Council,293,Surecare Slough,M45C,Adult Social Care Operations,Supplies and Services,"2,064.58",Apr-23
Slough Borough Council,293,Surecare Slough,M45C,Adult Social Care Operations,Supplies and Services,"1,852.20",Apr-23
Slough Borough Council,293,Surecare Slough,M48C,Adult Social Care Operations,Supplies and Services,"2,744.00",Apr-23
Slough Borough Council,293,Surecare Slough,M48C,Adult Social Care Operations,Supplies and Services,"2,977.90",Apr-23
Slough Borough Council,293,Surecare Slough,M48C,Adult Social Care Operations,Supplies and Services,"1,381.80",Apr-23
Slough Borough Council,1724,Susan Nash,C322,Community,Supplies and Services,"1,064.00",Apr-23
Slough Borough Council,3369,Teeny Boppers Montessori School,F909,Children & Families,Supplies and Services,"8,787.43",Apr-23
Slough Borough Council,1596,Teleshore (Uk) Limited,D320,Place Operations,Supplies and Services,"5,704.50",Apr-23
Slough Borough Council,1596,Teleshore (Uk) Limited,D320,Place Operations,Supplies and Services,"1,079.40",Apr-23
Slough Borough Council,807803,Telsolutions Ltd,H015,Finance & Commercial,Supplies and Services,500.00,Apr-23
Slough Borough Council,3168,Thames Valley Berkshire Local Enteprise Partnership Ltd,D002,Place Management,Supplies and Services,"1,100.00",Apr-23
Slough Borough Council,807878,Thames Valley Buses,D512,Place Strategy & Infrastructure,Supplies and Services,"6,664.71",Apr-23
Slough Borough Council,807878,Thames Valley Buses,D512,Place Strategy & Infrastructure,Supplies and Services,"1,623.28",Apr-23
Slough Borough Council,807878,Thames Valley Buses,D512,Place Strategy & Infrastructure,Supplies and Services,"1,513.62",Apr-23
Slough Borough Council,803712,Thames Valley Transport Services LTD,F123,Education & Inclusion,Supplies and Services,"121,436.58",Apr-23
Slough Borough Council,717,Thames Water Utilities Limited,J015,Place Management,Premises,"1,247.66",Apr-23
Slough Borough Council,803774,The Abbeyfield Maidenhead Society Ltd,M27C,Adult Social Care Operations,Supplies and Services,"3,484.52",Apr-23
Slough Borough Council,808451,The Address Management,H205,Housing (People) Services,Supplies and Services,"30,000.00",Apr-23
Slough Borough Council,808791,The Copyright Licensing Agency Ltd,B252,Business Services,Supplies and Services,"4,288.02",Apr-23
Slough Borough Council,653,The Godolphin Junior Academy,E620,Children & Families,Supplies and Services,"8,656.97",Apr-23
Slough Borough Council,653,The Godolphin Junior Academy,B297,Finance & Commercial,Government Grants,"5,340.00",Apr-23
Slough Borough Council,1385,The Langley Academy,E610,Children & Families,Supplies and Services,"15,333.33",Apr-23
Slough Borough Council,803300,The Langley Academy Primary,E610,Children & Families,Supplies and Services,"18,305.00",Apr-23
Slough Borough Council,806847,The Langley Heritage Primary Academy,E620,Children & Families,Supplies and Services,"21,336.67",Apr-23
Slough Borough Council,806847,The Langley Heritage Primary Academy,B297,Finance & Commercial,Government Grants,"3,360.00",Apr-23
Slough Borough Council,805400,The Leading Care Company,M44C,Adult Social Care Operations,Supplies and Services,719.36,Apr-23
Slough Borough Council,805400,The Leading Care Company,M44C,Adult Social Care Operations,Supplies and Services,637.68,Apr-23
Slough Borough Council,805400,The Leading Care Company,M44D,Adult Social Care Operations,Supplies and Services,"3,800.16",Apr-23
Slough Borough Council,805400,The Leading Care Company,M44D,Adult Social Care Operations,Supplies and Services,"1,056.61",Apr-23
Slough Borough Council,805400,The Leading Care Company,M48C,Adult Social Care Operations,Supplies and Services,"3,800.00",Apr-23
Slough Borough Council,3116,The Oratory Montessori Day Nursery,F909,Children & Families,Supplies and Services,"14,990.03",Apr-23
Slough Borough Council,803338,The Owl Centre,F417,Education & Inclusion,Supplies and Services,"1,630.50",Apr-23
Slough Borough Council,2209,The Specialist Education Trust,B297,Finance & Commercial,Government Grants,600.00,Apr-23
Slough Borough Council,806500,The Timber Group Ltd,D750,Place Operations,Supplies and Services,"1,540.32",Apr-23
Slough Borough Council,821,The Westgate School,E610,Children & Families,Supplies and Services,"28,541.67",Apr-23
Slough Borough Council,807243,This is Focus Ltd,F148,Children & Families,Supplies and Services,"1,550.00",Apr-23
Slough Borough Council,805915,Time 4 U Limited,M44F,Adult Social Care Operations,Supplies and Services,"3,139.05",Apr-23
Slough Borough Council,806360,Tiny Turtles Daycare Nursery Ltd,F909,Children & Families,Supplies and Services,"17,402.89",Apr-23
Slough Borough Council,803194,TMP Worldwide,B348,People,Indirect Employee Expenses,930.00,Apr-23
Slough Borough Council,803194,TMP Worldwide,B348,People,Indirect Employee Expenses,790.05,Apr-23
Slough Borough Council,803194,TMP Worldwide,B348,People,Indirect Employee Expenses,"2,094.00",Apr-23
Slough Borough Council,803194,TMP Worldwide,B348,People,Indirect Employee Expenses,790.05,Apr-23
Slough Borough Council,803194,TMP Worldwide,B348,People,Indirect Employee Expenses,"5,086.40",Apr-23
Slough Borough Council,803194,TMP Worldwide,B348,People,Indirect Employee Expenses,790.05,Apr-23
Slough Borough Council,803194,TMP Worldwide,B348,People,Indirect Employee Expenses,585.00,Apr-23
Slough Borough Council,171,Toad Hall Nursery,F909,Children & Families,Supplies and Services,"22,371.40",Apr-23
Slough Borough Council,2203,Toby Miller,C322,Community,Supplies and Services,"3,524.00",Apr-23
Slough Borough Council,2203,Toby Miller,C322,Community,Supplies and Services,"1,343.25",Apr-23
Slough Borough Council,1782,Top Mill Ltd,H205,Housing (People) Services,Supplies and Services,560.00,Apr-23
Slough Borough Council,1782,Top Mill Ltd,H205,Housing (People) Services,Supplies and Services,560.00,Apr-23
Slough Borough Council,807871,Total Pest Control (UK) Limited,C001,Place Operations,Supplies and Services,637.50,Apr-23
Slough Borough Council,1476,Transport For London - London Buses,D512,Place Strategy & Infrastructure,Supplies and Services,"6,232.64",Apr-23
Slough Borough Council,2889,Tudor (UK) Ltd t/a Tudor Environmental,D750,Place Operations,Supplies and Services,523.34,Apr-23
Slough Borough Council,942,Turning Point,A04C,Adult Social Care Operations,Supplies and Services,"43,118.13",Apr-23
Slough Borough Council,942,Turning Point,A04C,Adult Social Care Operations,Supplies and Services,"2,200.00",Apr-23
Slough Borough Council,942,Turning Point,A04C,Adult Social Care Operations,Supplies and Services,"2,200.00",Apr-23
Slough Borough Council,808371,Turning Point - Smithfield,A04C,Adult Social Care Operations,Supplies and Services,"1,650.00",Apr-23
Slough Borough Council,1387,Ultimate Incentive Ltd,B240,Business Services,Supplies and Services,591.00,Apr-23
Slough Borough Council,3953,Upton Court Grammar School,E610,Children & Families,Supplies and Services,"2,500.00",Apr-23
Slough Borough Council,577,Upton Park Hotel,H205,Housing (People) Services,Supplies and Services,"1,372.00",Apr-23
Slough Borough Council,577,Upton Park Hotel,H205,Housing (People) Services,Supplies and Services,"1,372.00",Apr-23
Slough Borough Council,577,Upton Park Hotel,H205,Housing (People) Services,Supplies and Services,"97,394.00",Apr-23
Slough Borough Council,1212,Virgin Media Ltd,B023,Finance & Commercial,Supplies and Services,"18,062.87",Apr-23
Slough Borough Council,1212,Virgin Media Ltd,B023,Finance & Commercial,Supplies and Services,"2,898.16",Apr-23
Slough Borough Council,1212,Virgin Media Ltd,B023,Finance & Commercial,Supplies and Services,"2,918.25",Apr-23
Slough Borough Council,1212,Virgin Media Ltd,B023,Finance & Commercial,Supplies and Services,"3,078.02",Apr-23
Slough Borough Council,1212,Virgin Media Ltd,B342,Digital and Strategic IT,Supplies and Services,"64,705.27",Apr-23
Slough Borough Council,1212,Virgin Media Ltd,B342,Digital and Strategic IT,Supplies and Services,"5,904.80",Apr-23
Slough Borough Council,1839,Vistascapes,P006,Capital,Capital Charges,"2,359.50",Apr-23
Slough Borough Council,807617,Vivedia Ltd t/a Obitus,D320,Place Operations,External Receipts,"7,740.00",Apr-23
Slough Borough Council,807617,Vivedia Ltd t/a Obitus,D320,Place Operations,External Receipts,780.00,Apr-23
Slough Borough Council,807617,Vivedia Ltd t/a Obitus,D320,Place Operations,External Receipts,"2,260.00",Apr-23
Slough Borough Council,803163,Volker Highways,D880,Place Operations,Supplies and Services,"55,675.64",Apr-23
Slough Borough Council,803163,Volker Highways,P243,Capital,Capital Charges,"30,000.00",Apr-23
Slough Borough Council,803163,Volker Highways,D413,Place Strategy & Infrastructure,Supplies and Services,"2,153.51",Apr-23
Slough Borough Council,803163,Volker Highways,P243,Capital,Capital Charges,"1,002.22",Apr-23
Slough Borough Council,2682,Voyage 1 Limited,M26E,Adult Social Care Operations,Supplies and Services,553.09,Apr-23
Slough Borough Council,3436,Voyage Ltd,M42E,Adult Social Care Operations,Supplies and Services,"6,236.91",Apr-23
Slough Borough Council,3436,Voyage Ltd,M42E,Adult Social Care Operations,Supplies and Services,"6,034.92",Apr-23
Slough Borough Council,3436,Voyage Ltd,M42E,Adult Social Care Operations,Supplies and Services,"4,988.31",Apr-23
Slough Borough Council,3436,Voyage Ltd,M42E,Adult Social Care Operations,Supplies and Services,"5,916.93",Apr-23
Slough Borough Council,807180,Ware247,B342,Digital and Strategic IT,Capital Charges,"1,890.00",Apr-23
Slough Borough Council,804372,Ways into Work,B211,Community,Supplies and Services,"6,420.00",Apr-23
Slough Borough Council,804372,Ways into Work,B211,Community,Supplies and Services,"89,128.88",Apr-23
Slough Borough Council,1762,Wellingtons For Langley Hall,F550,Children & Families,Supplies and Services,"2,310.00",Apr-23
Slough Borough Council,1762,Wellingtons For Langley Hall,F550,Children & Families,Supplies and Services,"2,310.00",Apr-23
Slough Borough Council,1762,Wellingtons For Langley Hall,F550,Children & Families,Supplies and Services,"2,310.00",Apr-23
Slough Borough Council,1762,Wellingtons For Langley Hall,F550,Children & Families,Supplies and Services,"1,680.00",Apr-23
Slough Borough Council,1762,Wellingtons For Langley Hall,F550,Children & Families,Supplies and Services,"2,310.00",Apr-23
Slough Borough Council,1762,Wellingtons For Langley Hall,F909,Children & Families,Supplies and Services,"63,474.35",Apr-23
Slough Borough Council,2891,West Berkshire Council,A08R,Adult Social Care Operations,Supplies and Services,"9,720.00",Apr-23
Slough Borough Council,2891,West Berkshire Council,F210,Community,Supplies and Services,"3,333.00",Apr-23
Slough Borough Council,2891,West Berkshire Council,B329,Customer,TP-Joint Authorities,500.00,Apr-23
Slough Borough Council,1649,Western House Primary School,E610,Children & Families,Supplies and Services,"25,393.33",Apr-23
Slough Borough Council,1649,Western House Primary School,B297,Finance & Commercial,Government Grants,"3,180.00",Apr-23
Slough Borough Council,3628,White Leaf Care Ltd,M26E,Adult Social Care Operations,Supplies and Services,"4,591.20",Apr-23
Slough Borough Council,3628,White Leaf Care Ltd,M26E,Adult Social Care Operations,Supplies and Services,528.38,Apr-23
Slough Borough Council,3628,White Leaf Care Ltd,M26E,Adult Social Care Operations,Supplies and Services,545.99,Apr-23
Slough Borough Council,3628,White Leaf Care Ltd,M26E,Adult Social Care Operations,Supplies and Services,528.38,Apr-23
Slough Borough Council,3628,White Leaf Care Ltd,M26E,Adult Social Care Operations,Supplies and Services,528.38,Apr-23
Slough Borough Council,3628,White Leaf Care Ltd,M26E,Adult Social Care Operations,Supplies and Services,545.99,Apr-23
Slough Borough Council,3628,White Leaf Care Ltd,M26E,Adult Social Care Operations,Supplies and Services,545.99,Apr-23
Slough Borough Council,3628,White Leaf Care Ltd,M26E,Adult Social Care Operations,Supplies and Services,545.99,Apr-23
Slough Borough Council,3628,White Leaf Care Ltd,M26E,Adult Social Care Operations,Supplies and Services,528.44,Apr-23
Slough Borough Council,3628,White Leaf Care Ltd,M26E,Adult Social Care Operations,Supplies and Services,545.99,Apr-23
Slough Borough Council,3628,White Leaf Care Ltd,M26E,Adult Social Care Operations,Supplies and Services,545.99,Apr-23
Slough Borough Council,3628,White Leaf Care Ltd,M26E,Adult Social Care Operations,Supplies and Services,545.99,Apr-23
Slough Borough Council,3628,White Leaf Care Ltd,M27C,Adult Social Care Operations,Supplies and Services,"8,114.40",Apr-23
Slough Borough Council,808062,Whitefriars Nursing & Residential Home,M26E,Adult Social Care Operations,Supplies and Services,"3,606.00",Apr-23
Slough Borough Council,1753,Willow Primary School,E620,Children & Families,Supplies and Services,"16,106.67",Apr-23
Slough Borough Council,805208,Wilson & Scott (Highways) Ltd,D880,Place Operations,Supplies and Services,"1,211.44",Apr-23
Slough Borough Council,807549,Windsar Care (UK) LLP,M15F,Adult Social Care Operations,Supplies and Services,"4,417.50",Apr-23
Slough Borough Council,807549,Windsar Care (UK) LLP,M15F,Adult Social Care Operations,Supplies and Services,"4,417.50",Apr-23
Slough Borough Council,807549,Windsar Care (UK) LLP,M17C,Adult Social Care Operations,Supplies and Services,"4,533.75",Apr-23
Slough Borough Council,807549,Windsar Care (UK) LLP,M18C,Adult Social Care Operations,Supplies and Services,"4,533.75",Apr-23
Slough Borough Council,807549,Windsar Care (UK) LLP,M18C,Adult Social Care Operations,Supplies and Services,"4,417.50",Apr-23
Slough Borough Council,807549,Windsar Care (UK) LLP,M18C,Adult Social Care Operations,Supplies and Services,"4,533.75",Apr-23
Slough Borough Council,804807,Windsar Care Centre Ltd,M15D,Adult Social Care Operations,Supplies and Services,"6,975.00",Apr-23
Slough Borough Council,804807,Windsar Care Centre Ltd,M15F,Adult Social Care Operations,Supplies and Services,"3,441.00",Apr-23
Slough Borough Council,804807,Windsar Care Centre Ltd,M17C,Adult Social Care Operations,Supplies and Services,"4,417.50",Apr-23
Slough Borough Council,804807,Windsar Care Centre Ltd,M17C,Adult Social Care Operations,Supplies and Services,"4,533.75",Apr-23
Slough Borough Council,804807,Windsar Care Centre Ltd,M18C,Adult Social Care Operations,Supplies and Services,"4,533.75",Apr-23
Slough Borough Council,804807,Windsar Care Centre Ltd,M18C,Adult Social Care Operations,Supplies and Services,"3,487.50",Apr-23
Slough Borough Council,804807,Windsar Care Centre Ltd,M18C,Adult Social Care Operations,Supplies and Services,"4,185.00",Apr-23
Slough Borough Council,804807,Windsar Care Centre Ltd,M18C,Adult Social Care Operations,Supplies and Services,"5,580.00",Apr-23
Slough Borough Council,804807,Windsar Care Centre Ltd,M18C,Adult Social Care Operations,Supplies and Services,"4,533.75",Apr-23
Slough Borough Council,804807,Windsar Care Centre Ltd,M18C,Adult Social Care Operations,Supplies and Services,"4,185.00",Apr-23
Slough Borough Council,804807,Windsar Care Centre Ltd,M18C,Adult Social Care Operations,Supplies and Services,"4,533.75",Apr-23
Slough Borough Council,804807,Windsar Care Centre Ltd,M18C,Adult Social Care Operations,Supplies and Services,"4,533.75",Apr-23
Slough Borough Council,3604,Windsar Care Ltd,M15F,Adult Social Care Operations,Supplies and Services,"2,790.00",Apr-23
Slough Borough Council,3604,Windsar Care Ltd,M15F,Adult Social Care Operations,Supplies and Services,"3,603.75",Apr-23
Slough Borough Council,3604,Windsar Care Ltd,M15F,Adult Social Care Operations,Supplies and Services,"4,650.00",Apr-23
Slough Borough Council,3604,Windsar Care Ltd,M15F,Adult Social Care Operations,Supplies and Services,"2,208.75",Apr-23
Slough Borough Council,3604,Windsar Care Ltd,M17C,Adult Social Care Operations,Supplies and Services,"3,487.50",Apr-23
Slough Borough Council,3604,Windsar Care Ltd,M18C,Adult Social Care Operations,Supplies and Services,"3,720.00",Apr-23
Slough Borough Council,3604,Windsar Care Ltd,M18C,Adult Social Care Operations,Supplies and Services,"4,068.75",Apr-23
Slough Borough Council,3604,Windsar Care Ltd,M25C,Adult Social Care Operations,Supplies and Services,"3,487.50",Apr-23
Slough Borough Council,3604,Windsar Care Ltd,M25D,Adult Social Care Operations,Supplies and Services,"4,533.75",Apr-23
Slough Borough Council,3604,Windsar Care Ltd,M26E,Adult Social Care Operations,Supplies and Services,"3,487.50",Apr-23
Slough Borough Council,3604,Windsar Care Ltd,M27F,Adult Social Care Operations,Supplies and Services,"5,580.00",Apr-23
Slough Borough Council,3604,Windsar Care Ltd,M27F,Adult Social Care Operations,Supplies and Services,"2,862.85",Apr-23
Slough Borough Council,807103,Witherslack Group,F462,Children & Families,Supplies and Services,"26,459.82",Apr-23
Slough Borough Council,805014,Yeldall Manor,A04C,Adult Social Care Operations,Supplies and Services,"1,540.00",Apr-23
Slough Borough Council,808247,Yunex Limited,P209,Capital,Capital Charges,"75,928.00",Apr-23
